Workbook

Sheet Reliability 1
B3: Example time-to-failure distribution data
C5: Number of systems | E5: 100
B6: Time period start (hours) | C6: Time period end (hours) | D6: Number of systems failing during this time period | E6: Fraction of systems failing curing this time period (f) | F6: Total number of systems failed at the end of this time period (Nf) | G6: Total number of systems surviving at the end of this time period (Ns) | H6: Reliability at the end of this time period (R) | I6: Unreliability at the end of this time period (F) | J6: Hazard rate at the end of this time period (h)
B7: 0 | C7: 100 | D7: 1 | E7: =D7/$E$5 -> 0.01 | F7: =D7 -> 1 | G7: =$E$5-F7 -> 99 | H7: =G7/$E$5 -> 0.99 | I7: =1-H7 -> 0.01 | J7: =E7/H7 -> 0.0101010101
B8: =C7+1 -> 101 | C8: =B8+99 -> 200 | D8: 3 | E8: =D8/$E$5 -> 0.03 | F8: =F7+D8 -> 4 | G8: =$E$5-F8 -> 96 | H8: =G8/$E$5 -> 0.96 | I8: =1-H8 -> 0.04 | J8: =E8/H8 -> 0.03125
B9: =C8+1 -> 201 | C9: =B9+99 -> 300 | D9: 10 | E9: 0.1 | F9: =F8+D9 -> 14 | G9: 86 | H9: 0.86 | I9: 0.14 | J9: 0.1162790698
B10: 301 | C10: 400 | D10: 21 | E10: 0.21 | F10: 35 | G10: 65 | H10: 0.65 | I10: 0.35 | J10: 0.3230769231
B11: 401 | C11: 500 | D11: 31 | E11: 0.31 | F11: 66 | G11: 34 | H11: 0.34 | I11: 0.66 | J11: 0.9117647059
B12: 501 | C12: 600 | D12: 19 | E12: 0.19 | F12: 85 | G12: 15 | H12: 0.15 | I12: 0.85 | J12: 1.266666667
B13: 601 | C13: 700 | D13: 12 | E13: 0.12 | F13: 97 | G13: 3 | H13: 0.03 | I13: 0.97 | J13: 4
B14: 701 | C14: 800 | D14: 2 | E14: 0.02 | F14: 99 | G14: 1 | H14: 0.01 | I14: 0.99 | J14: 2
B15: 801 | C15: 900 | D15: 1 | E15: 0.01 | F15: 100 | G15: 0 | H15: 0 | I15: 1 | J15: infinity

Sheet Sparing 1
C2: t | D2: 4 | E2: hours
C3: n | D3: 2000
C4: lambda | D4: 121.7 | E4: failures per million hours
C5: lambda | D5: =D4/1000000 -> 0.0001217 | E5: failures per hour
C8: Equation (5.13) in Sustainment Book
C10: i | D10: Pr( ) term | E10: Pr( ) sum
C11: 0 | D11: =(EXP(-$D$5*$D$3*$D$2))*(($D$3*$D$5*$D$2)^C11)/FACT(C11) -> 0.3777207927 | E11: =D11 -> 0.3777207927
C12: =1+C11 -> 1 | D12: 0.3677489638 | E12: =E11+D12 -> 0.7454697564
C13: =1+C12 -> 2 | D13: 0.1790201956 | E13: =E12+D13 -> 0.924489952 | F13: greater than 0.9, so this is enough spares
C14: 3 | D14: 0.0580980208 | E14: 0.9825879728
C15: 4 | D15: 0.01414105826 | E15: 0.996729031
C16: 5 | D16: 0.002753546865 | E16: 0.9994825779
C17: 6 | D17: 0.0004468088713 | E17: 0.9999293868
C18: 7 | D18: 6.214473101e-05 | E18: 0.9999915315
C19: 8 | D19: 7.563013764e-06 | E19: 0.9999990945
C20: 9 | D20: 8.181500223e-07 | E20: 0.9999999127
C21: 10 | D21: 7.965508617e-08 | E21: 0.9999999923
C22: 11 | D22: 7.050199263e-09 | E22: 0.9999999994
C23: 12 | D23: 5.720061669e-10 | E23: 1
C24: 13 | D24: 4.283886185e-11 | E24: 1
C25: 14 | D25: 2.97913685e-12 | E25: 1
C26: 15 | D26: 1.933658425e-13 | E26: 1
C27: 16 | D27: 1.176631151e-14 | E27: 1
C28: 17 | D28: 6.738635818e-16 | E28: 1
C29: 18 | D29: 3.64485324e-17 | E29: 1
C30: 19 | D30: 1.867699534e-18 | E30: 1
C31: 20 | D31: 9.091961331e-20 | E31: 1
C32: 21 | D32: 4.215206453e-21 | E32: 1
C33: 22 | D33: 1.865420456e-22 | E33: 1
C34: 23 | D34: 7.896405895e-24 | E34: 1
C35: 24 | D35: 3.203308658e-25 | E35: 1
C36: 25 | D36: 1.247496524e-26 | E36: 1
C37: 26 | D37: 4.671394675e-28 | E37: 1
C38: 27 | D38: 1.684470317e-29 | E38: 1
C39: 28 | D39: 5.857143931e-31 | E39: 1
C40: 29 | D40: 1.966384597e-32 | E40: 1
C41: 30 | D41: 6.381573479e-34 | E41: 1
C42: 31 | D42: 2.004225787e-35 | E42: 1
C43: 32 | D43: 6.097856956e-37 | E43: 1

Sheet Sparing 2
C2: PL(kit) | D2: 0.97
C3: m | D3: 250 | E3: items in kit
C4: units/system | D4: 4
C5: systems/fleet | D5: 30
C6: op hours/day | D6: 8.45
C7: t | D7: 12 | E7: days
C8: MTBUR | D8: 14000 | E8: op hours
C10: n | D10: =D4*D5 -> 120 | E10: units in service
C11: lambda | D11: =1/D8 -> 7.142857143e-05 | E11: failures/hour
C12: t | D12: 101.4 | E12: op hours
C13: nlt | D13: =D10*D11*D12 -> 0.8691428571
C14: PL(itme) | D14: =D2^(1/D3) -> 0.9998781706
C16: Equation (5.13) in Sustainment Book
C18: i | D18: Pr( ) term | E18: Pr( ) sum
C19: 0 | D19: =(EXP(-$D$13))*(($D$13)^C19)/FACT(C19) -> 0.4193108045 | E19: =D19 -> 0.4193108045
C20: =1+C19 -> 1 | D20: =(EXP(-$D$13))*(($D$13)^C20)/FACT(C20) -> 0.3644409907 | E20: =E19+D20 -> 0.7837517952
C21: =1+C20 -> 2 | D21: 0.1583756419 | E21: =E20+D21 -> 0.9421274371
C22: 3 | D22: 0.04588368598 | E22: 0.9880111231
C23: 4 | D23: 0.009969869482 | E23: 0.9979809926
C24: 5 | D24: 0.001733048169 | E24: 0.9997140408
C25: 6 | D25: 0.0002510444063 | E25: 0.9999650852 | F25: greater than PL(item)
C26: 7 | D26: 3.117049322e-05 | E26: 0.9999962557
C27: 8 | D27: 3.386451442e-06 | E27: 0.9999996421
C28: 9 | D28: 3.270344535e-07 | E28: 0.9999999692
C29: 10 | D29: 2.842396593e-08 | E29: 0.9999999976
C30: 11 | D30: 2.245862451e-09 | E30: 0.9999999998
C31: 12 | D31: 1.62664609e-10 | E31: 1
C32: 13 | D32: 1.0875291e-11 | E32: 1
C33: 14 | D33: 6.751558208e-13 | E33: 1
C34: 15 | D34: 3.912045727e-14 | E34: 1
C35: 16 | D35: 2.125079125e-15 | E35: 1
C36: 17 | D36: 1.086469025e-16 | E36: 1
C37: 18 | D37: 5.246093293e-18 | E37: 1
C38: 19 | D38: 2.399791849e-19 | E38: 1
C39: 20 | D39: 1.042880972e-20 | E39: 1
C40: 21 | D40: 4.316250227e-22 | E40: 1
C41: 22 | D41: 1.705199116e-23 | E41: 1
C42: 23 | D42: 6.443746224e-25 | E42: 1
C43: 24 | D43: 2.333556668e-26 | E43: 1
C44: 25 | D44: 8.11277644e-28 | E44: 1
C45: 26 | D45: 2.711985267e-29 | E45: 1
C46: 27 | D46: 8.730009717e-31 | E46: 1
C47: 28 | D47: 2.709866281e-32 | E47: 1
C48: 29 | D48: 8.121589388e-34 | E48: 1
C49: 30 | D49: 2.352940468e-35 | E49: 1
C50: 31 | D50: 6.596907746e-37 | E50: 1
C51: 32 | D51: 1.791767265e-38 | E51: 1

Sheet Sparing 3
B3: n | C3: 2000
B4: lambda | C4: =121.7/1000000 -> 0.0001217 | D4: failures per hour | F4: =C3*C4*C5 -> 4.868 | G4: =EXP(-F4) -> 0.007688727375 | H4: =C3*C4*C5 -> 4.868
B5: t | C5: 20 | D5: hours
B6: MTBF | C6: =1/C4 -> 8216.926869
B8: k (must increment by 1) | D8: Poisson CL | E8: Normal Approx. z | F8: CL
B9: 0 | C9: =POWER($F$4,B9)*$G$4/FACT(B9) -> 0.007688727375 | D9: =SUM(C$9:C9) -> 0.007688727375 | E9: =(B9-$H$4)/SQRT($H$4) -> -2.206354459 | F9: =NORMSDIST(E9) -> 0.01367959552
B10: =B9+1 -> 1 | C10: =POWER($F$4,B10)*$G$4/FACT(B10) -> 0.03742872486 | D10: =SUM(C$9:C10) -> 0.04511745224 | E10: =(B10-$H$4)/SQRT($H$4) -> -1.753118128 | F10: =NORMSDIST(E10) -> 0.03979086621 | G10: =NORMSDIST(1.645) -> 0.9500150945
B11: =B10+1 -> 2 | C11: =POWER($F$4,B11)*$G$4/FACT(B11) -> 0.09110151632 | D11: =SUM(C$9:C11) -> 0.1362189686 | E11: -1.299881797 | F11: 0.09682074237 | G11: =NORMSDIST(1.282) -> 0.9000786769
B12: 3 | C12: 0.1478273938 | D12: =SUM(C$9:C12) -> 0.2840463624 | E12: -0.8466454663 | F12: 0.1985963818
B13: 4 | C13: 0.1799059383 | D13: =SUM(C$9:C13) -> 0.4639523006 | E13: -0.3934091353 | F13: 0.3470086618
B14: 5 | C14: 0.1751564215 | D14: =SUM(C$9:C14) -> 0.6391087221 | E14: 0.05982719569 | F14: 0.5238533673
B15: 6 | C15: 0.1421102433 | D15: =SUM(C$9:C15) -> 0.7812189654 | E15: 0.5130635267 | F15: 0.6960465581
B16: 7 | C16: 0.09882752349 | D16: =SUM(C$9:C16) -> 0.8800464889 | E16: 0.9662998577 | F16: 0.8330529214
B17: 8 | C17: 0.06013654804 | D17: =SUM(C$9:C17) -> 0.940183037 | E17: 1.419536189 | F17: 0.9221286229
B18: 9 | C18: 0.03252719065 | D18: =SUM(C$9:C18) -> 0.9727102276 | E18: 1.87277252 | F18: 0.9694500979
B19: 10 | C19: 0.01583423641 | D19: =SUM(C$9:C19) -> 0.988544464 | E19: 2.326008851 | F19: 0.9899909607
B20: 11 | C20: 0.007007369349 | D20: =SUM(C$9:C20) -> 0.9955518334 | E20: 2.779245182 | F20: 0.9972757308
B21: 12 | C21: 0.002842656166 | D21: =SUM(C$9:C21) -> 0.9983944896 | E21: 3.232481513 | F21: 0.9993863996
B22: 13 | C22: 0.001064465401 | D22: =SUM(C$9:C22) -> 0.999458955 | E22: 3.685717844 | F22: 0.9998859705
B23: 14 | C23: 0.0003701298267 | D23: =SUM(C$9:C23) -> 0.9998290848 | E23: 4.138954175 | F23: 0.9999825554
B24: 15 | C24: 0.0001201194664 | D24: =SUM(C$9:C24) -> 0.9999492043 | E24: 4.592190506 | F24: 0.9999978069
B25: 16 | C25: 3.654634766e-05 | D25: =SUM(C$9:C25) -> 0.9999857506 | E25: 5.045426837 | F25: 0.9999997737
B26: 17 | C26: 1.046515414e-05 | D26: =SUM(C$9:C26) -> 0.9999962158 | E26: 5.498663168 | F26: 0.9999999809
B27: 18 | C27: 2.830242798e-06 | D27: =SUM(C$9:C27) -> 0.999999046 | E27: 5.951899499 | F27: 0.9999999987
B28: 19 | C28: 7.251379968e-07 | D28: =SUM(C$9:C28) -> 0.9999997711 | E28: 6.40513583 | F28: 0.9999999999
B29: 20 | C29: 1.764985884e-07 | D29: =SUM(C$9:C29) -> 0.9999999476 | E29: 6.858372161 | F29: 1
B30: 21 | C30: 4.091405373e-08 | D30: =SUM(C$9:C30) -> 0.9999999885 | E30: 7.311608492 | F30: 1
B31: 22 | C31: 9.053164253e-09 | D31: =SUM(C$9:C31) -> 0.9999999976 | E31: 7.764844823 | F31: 1
B32: 23 | C32: 1.916121895e-09 | D32: =SUM(C$9:C32) -> 0.9999999995 | E32: 8.218081154 | F32: 1
B33: 24 | C33: 3.88653391e-10 | D33: =SUM(C$9:C33) -> 0.9999999999 | E33: 8.671317485 | F33: 1
B34: 25 | C34: 7.56785883e-11 | D34: =SUM(C$9:C34) -> 1 | E34: 9.124553816 | F34: 1
B35: 26 | C35: 1.41693603e-11 | D35: =SUM(C$9:C35) -> 1 | E35: 9.577790147 | F35: 1
B36: 27 | C36: 2.554683183e-12 | D36: =SUM(C$9:C36) -> 1 | E36: 10.03102648 | F36: 1
B37: 28 | C37: 4.441499192e-13 | D37: =SUM(C$9:C37) -> 1 | E37: 10.48426281 | F37: 1
B38: 29 | C38: 7.455592436e-14 | D38: =SUM(C$9:C38) -> 1 | E38: 10.93749914 | F38: 1
B39: 30 | C39: 1.209794133e-14 | D39: =SUM(C$9:C39) -> 1 | E39: 11.39073547 | F39: 1
B40: 31 | C40: 1.899767044e-15 | D40: =SUM(C$9:C40) -> 1 | E40: 11.8439718 | F40: 1
B41: 32 | C41: 2.890020616e-16 | D41: =SUM(C$9:C41) -> 1 | E41: 12.29720813 | F41: 1
B42: 33 | C42: 4.263218291e-17 | D42: =SUM(C$9:C42) -> 1 | E42: 12.75044446 | F42: 1
B43: 34 | C43: 6.103925483e-18 | D43: =SUM(C$9:C43) -> 1 | E43: 13.20368079 | F43: 1
B44: 35 | C44: 8.489688357e-19 | D44: =SUM(C$9:C44) -> 1 | E44: 13.65691713 | F44: 1
B45: 36 | C45: 1.147994526e-19 | D45: =SUM(C$9:C45) -> 1 | E45: 14.11015346 | F45: 1
B46: 37 | C46: 1.510388473e-20 | D46: =SUM(C$9:C46) -> 1 | E46: 14.56338979 | F46: 1
B47: 38 | C47: 1.934887128e-21 | D47: =SUM(C$9:C47) -> 1 | E47: 15.01662612 | F47: 1
B48: 39 | C48: 2.415136036e-22 | D48: =SUM(C$9:C48) -> 1 | E48: 15.46986245 | F48: 1
B49: 40 | C49: 2.939220556e-23 | D49: =SUM(C$9:C49) -> 1 | E49: 15.92309878 | F49: 1
B50: 41 | C50: 3.489786748e-24 | D50: =SUM(C$9:C50) -> 1 | E50: 16.37633511 | F50: 1

Sheet Sparing 4
C3: demand mean | D3: 35 | E3: parts/week | G3: =D3 -> 35 | H3: parts/week
C4: demand stddev | D4: 10 | E4: parts/week | G4: =D4 -> 10 | H4: parts/week
C5: lead time mean | D5: 5 | E5: days | G5: =D5/7 -> 0.7142857143 | H5: weeks
C6: lead time stddev | D6: 12 | E6: hours | G6: =D6/24/7 -> 0.07142857143 | H6: weeks
C7: demand period | D7: 1 | E7: week | G7: =D7 -> 1 | H7: week
C9: CL | D9: 0.95
C10: z | D10: =NORMINV(D9,0,1) -> 1.644853627
C12: Qs | D12: =D10*SQRT(G5*G4*G4/G7+G3*G3*G6*G6) -> 14.49699108

Sheet Warranty 1
C3: lambda | D3: 0.004 | E3: failures/month
C4: Ccw | D4: 112
C5: alpha | D5: 500000
C6: Cfw | D6: 10000
C7: Tw | D7: 12 | E7: months
C9: F(Tw) | D9: =1-EXP(-D3*D7) -> 0.04686621292
C10: Crw | D10: =D6+D5*D9*D4 -> 2634507.924
C12: M(Tw) | D12: =D3*D7 -> 0.048
C13: Crw | D13: =D6+D5*D12*D4 -> 2698000
C15: Warranty cost per TV | E15: =D13/D5 -> 5.396

Sheet Bus 1
B2: Weibull
B4: Location | C4: 0 | D4: miles | E4: Miles | F4: A | G4: f(t)
B5: Shape | C5: 2 | E5: 0 | F5: =(E5-$C$4)/$C$6 -> 0 | G5: =$C$5*F5^($C$5-1)*EXP(-F5^$C$5) -> 0
B6: Scale | C6: 74000 | D6: miles | E6: =E5+2000 -> 2000 | F6: =(E6-$C$4)/$C$6 -> 0.02702702703 | G6: =$C$5*F6^($C$5-1)*EXP(-(F6^$C$5))/$C$6 -> 7.299268127e-07
E7: =E6+2000 -> 4000 | F7: 0.05405405405 | G7: =$C$5*F7^($C$5-1)*EXP(-(F7^$C$5))/$C$6 -> 1.456658033e-06
E8: =E7+2000 -> 6000 | F8: 0.08108108108 | G8: 2.177021375e-06
E9: 8000 | F9: 0.1081081081 | G9: 2.887890924e-06
E10: 10000 | F10: 0.1351351351 | G10: 3.586209738e-06
E11: 12000 | F11: 0.1621621622 | G11: 4.269011733e-06
E12: 14000 | F12: 0.1891891892 | G12: 4.933442664e-06
E13: 16000 | F13: 0.2162162162 | G13: 5.576779968e-06
E14: 18000 | F14: 0.2432432432 | G14: 6.19645129e-06
E15: 20000 | F15: 0.2702702703 | G15: 6.79005151e-06
E16: 22000 | F16: 0.2972972973 | G16: 7.35535812e-06
E17: 24000 | F17: 0.3243243243 | G17: 7.890344811e-06
E18: 26000 | F18: 0.3513513514 | G18: 8.393193158e-06
E19: 28000 | F19: 0.3783783784 | G19: 8.862302317e-06
E20: 30000 | F20: 0.4054054054 | G20: 9.296296658e-06
E21: 32000 | F21: 0.4324324324 | G21: 9.694031311e-06
E22: 34000 | F22: 0.4594594595 | G22: 1.005459559e-05
E23: 36000 | F23: 0.4864864865 | G23: 1.037731434e-05
E24: 38000 | F24: 0.5135135135 | G24: 1.066174716e-05
E25: 40000 | F25: 0.5405405405 | G25: 1.09076857e-05
E26: 42000 | F26: 0.5675675676 | G26: 1.111514894e-05
E27: 44000 | F27: 0.5945945946 | G27: 1.128437669e-05
E28: 46000 | F28: 0.6216216216 | G28: 1.141582133e-05
E29: 48000 | F29: 0.6486486486 | G29: 1.151013803e-05
E30: 50000 | F30: 0.6756756757 | G30: 1.156817346e-05
E31: 52000 | F31: 0.7027027027 | G31: 1.159095327e-05
E32: 54000 | F32: 0.7297297297 | G32: 1.157966846e-05
E33: 56000 | F33: 0.7567567568 | G33: 1.153566078e-05
E34: 58000 | F34: 0.7837837838 | G34: 1.146040744e-05
E35: 60000 | F35: 0.8108108108 | G35: 1.135550518e-05
E36: 62000 | F36: 0.8378378378 | G36: 1.122265402e-05
E37: 64000 | F37: 0.8648648649 | G37: 1.106364073e-05
E38: 66000 | F38: 0.8918918919 | G38: 1.088032235e-05
E39: 68000 | F39: 0.9189189189 | G39: 1.067460973e-05
E40: 70000 | F40: 0.9459459459 | G40: 1.044845147e-05
E41: 72000 | F41: 0.972972973 | G41: 1.020381822e-05
E42: 74000 | F42: 1 | G42: 9.942687599e-06
E43: 76000 | F43: 1.027027027 | G43: 9.667029733e-06
E44: 78000 | F44: 1.054054054 | G44: 9.378793696e-06
E45: 80000 | F45: 1.081081081 | G45: 9.079894775e-06
E46: 82000 | F46: 1.108108108 | G46: 8.772202728e-06
E47: 84000 | F47: 1.135135135 | G47: 8.457531084e-06
E48: 86000 | F48: 1.162162162 | G48: 8.137627521e-06
E49: 88000 | F49: 1.189189189 | G49: 7.814165372e-06
E50: 90000 | F50: 1.216216216 | G50: 7.488736254e-06
E51: 92000 | F51: 1.243243243 | G51: 7.162843853e-06
E52: 94000 | F52: 1.27027027 | G52: 6.83789883e-06
E53: 96000 | F53: 1.297297297 | G53: 6.515214845e-06
E54: 98000 | F54: 1.324324324 | G54: 6.196005659e-06
E55: 100000 | F55: 1.351351351 | G55: 5.88138327e-06
E56: 102000 | F56: 1.378378378 | G56: 5.572357046e-06
E57: 104000 | F57: 1.405405405 | G57: 5.269833767e-06
E58: 106000 | F58: 1.432432432 | G58: 4.974618547e-06
E59: 108000 | F59: 1.459459459 | G59: 4.687416541e-06
E60: 110000 | F60: 1.486486486 | G60: 4.408835362e-06
E61: 112000 | F61: 1.513513514 | G61: 4.139388157e-06
E62: 114000 | F62: 1.540540541 | G62: 3.879497227e-06
E63: 116000 | F63: 1.567567568 | G63: 3.62949814e-06
E64: 118000 | F64: 1.594594595 | G64: 3.389644255e-06
E65: 120000 | F65: 1.621621622 | G65: 3.160111565e-06
E66: 122000 | F66: 1.648648649 | G66: 2.941003799e-06
E67: 124000 | F67: 1.675675676 | G67: 2.732357716e-06
E68: 126000 | F68: 1.702702703 | G68: 2.534148508e-06
E69: 128000 | F69: 1.72972973 | G69: 2.34629526e-06
E70: 130000 | F70: =(E70-$C$4)/$C$6 -> 1.756756757 | G70: 2.16866641e-06
E71: 132000 | F71: 1.783783784 | G71: =$C$5*F71^($C$5-1)*EXP(-(F71^$C$5))/$C$6 -> 2.00108515e-06
E72: =E71+2000 -> 134000 | F72: 1.810810811 | G72: 1.843334723e-06
E73: 136000 | F73: 1.837837838 | G73: 1.695163575e-06
E74: 138000 | F74: 1.864864865 | G74: 1.556290327e-06
E75: 140000 | F75: 1.891891892 | G75: 1.426408526e-06
E76: 142000 | F76: 1.918918919 | G76: 1.305191161e-06
E77: 144000 | F77: 1.945945946 | G77: 1.192294913e-06
E78: 146000 | F78: 1.972972973 | G78: 1.087364135e-06
E79: 148000 | F79: 2 | G79: 9.900345345e-07
E80: 150000 | F80: 2.027027027 | G80: 8.999365654e-07
E81: 152000 | F81: 2.054054054 | G81: 8.166985182e-07
E82: 154000 | F82: 2.081081081 | G82: 7.399493134e-07
E83: 156000 | F83: 2.108108108 | G83: 6.693209988e-07
E84: 158000 | F84: 2.135135135 | G84: 6.044509588e-07
E85: 160000 | F85: 2.162162162 | G85: 5.449838449e-07
E86: 162000 | F86: 2.189189189 | G86: 4.905732382e-07
E87: 164000 | F87: 2.216216216 | G87: 4.408830568e-07
E88: 166000 | F88: 2.243243243 | G88: 3.955887225e-07
E89: 168000 | F89: 2.27027027 | G89: 3.543781033e-07
E90: 170000 | F90: 2.297297297 | G90: 3.169522454e-07

Sheet Bus 2
C2: t | D2: 200000 | E2: miles
C3: n | D3: 1
C4: Scale (Beta) | D4: 2
C5: Shape (Eta) | D5: 74000 | E5: miles
C6: mean | D6: =D5*_xlfn.GAMMA(1+1/D4) -> 65580.79248 | E6: miles
C7: lambda | D7: =1/D6 -> 1.524836712e-05 | E7: failures per mile
C10: Equation (5.13) in Sustainment Book
C12: i | D12: Pr( ) term | E12: Pr( ) sum
C13: 0 | D13: =(EXP(-$D$7*$D$3*$D$2))*(($D$3*$D$7*$D$2)^C13)/FACT(C13) -> 0.04737439318 | E13: =D13 -> 0.04737439318
C14: =1+C13 -> 1 | D14: 0.1444764279 | E14: =E13+D14 -> 0.1918508211
C15: =1+C14 -> 2 | D15: 0.2203029613 | E15: =E14+D15 -> 0.4121537823
C16: 3 | D16: 0.2239506955 | E16: 0.6361044778
C17: 4 | D17: 0.1707441211 | E17: 0.8068485989
C18: 5 | D18: 0.1041427617 | E18: 0.9109913606 | F18: greater than 0.9 when n = 1, so this is enough spares
C19: 6 | D19: 0.05293356879 | E19: 0.9639249294
C20: 7 | D20: 0.02306144257 | E20: 0.986986372
C21: 8 | D21: 0.008791233568 | E21: 0.9957776055
C22: 9 | D22: 0.002978932376 | E22: 0.9987565379
C23: 10 | D23: 0.00090847709 | E23: 0.999665015
C24: 11 | D24: 0.0002518689489 | E24: 0.999916884
C25: 12 | D25: 6.400983667e-05 | E25: 0.9999808938
C26: 13 | D26: 1.501608445e-05 | E26: 0.9999959099
C27: 14 | D27: 3.271010977e-06 | E27: 0.9999991809
C28: 15 | D28: 6.650343498e-07 | E28: 0.9999998459
C29: 16 | D29: 1.267585989e-07 | E29: 0.9999999727
C30: 17 | D30: 2.273954886e-08 | E30: 0.9999999954
C31: 18 | D31: 3.852677657e-09 | E31: 0.9999999993
C32: 19 | D32: 6.183899297e-10 | E32: 0.9999999999
C33: 20 | D33: 9.429436674e-11 | E33: 1 | F33: greater than 0.9 when n = 5, so this is enough spares
C34: 21 | D34: 1.369366782e-11 | E34: 1
C35: 22 | D35: 1.898237039e-12 | E35: 1
C36: 23 | D36: 2.516957848e-13 | E36: 1
C37: 24 | D37: 3.198291442e-14 | E37: 1
C38: 25 | D38: 3.901497765e-15 | E38: 1
C39: 26 | D39: 4.576266943e-16 | E39: 1
C40: 27 | D40: 5.168933215e-17 | E40: 1
C41: 28 | D41: 5.629842235e-18 | E41: 1
C42: 29 | D42: 5.920406982e-19 | E42: 1
C43: 30 | D43: 6.018435945e-20 | E43: 1
C44: 31 | D44: 5.920730374e-21 | E44: 1
C45: 32 | D45: 5.642591899e-22 | E45: 1

Sheet Bus 3
C1: t | D1: 200000 | E1: miles
C2: Scale (Beta) | D2: 2
C3: Shape (Eta) | D3: 74000 | E3: miles
C4: Location (gamma) | D4: 0 | E4: miles
C5: mean | D5: =D4+D3*_xlfn.GAMMA(1+1/D2) -> 65580.79248 | E5: miles
C6: variance | D6: =D3*D3*(_xlfn.GAMMA(1+2/D2)-_xlfn.GAMMA(1+1/D2)*_xlfn.GAMMA(1+1/D2)) -> 1175159657 | E6: miles^2
C8: M(t) | D8: =D1/D5+D6/2/D5/D5-0.5 -> 2.686293197
C11: Change the location parameter to 2740 to include the maintenance time.

Sheet DCF 1
B2: i | C2: 0.06 | D2: per year
B3: n | C3: 20 | D3: years
B4: (1+i)^n | C4: =(1+C2)^C3 -> 3.207135472
B6: Option A | E6: Option B | H6: Option C
B7: A | C7: 500000 | E7: A | F7: 250000 | H7: A1 | I7: 160000
H8: g | I8: 0.13
B9: P | C9: =C7*(C4-1)/C2/C4 -> 5734960.609 | E9: P1 | F9: =F7*(C4-1)/C2/C4 -> 2867480.305
H10: Pg | I10: =I7*(1-((1+I8)/(1+C2))^C3)/(C2-I8) -> 5926750.248
E11: F | F11: 5000000
E12: n2 | F12: 8 | G12: years
E13: P2 | F13: =F11/((1+C2)^F12) -> 3137061.857
E15: P1+P2 | F15: =F9+F13 -> 6004542.161

Sheet MC 1
A8: Eta | B8: 23 | C8: years
A9: Gamma | B9: 5 | C9: years | D9: Mean time to first failure | E9: 25.39467475 | G9: Ranges
A10: Beta | B10: 2 | F10: 16.23820333 | G10: 0 | J10: Bin | K10: Frequency
D11: Mean direct calculation | E11: =B9 + B8 * _xlfn.GAMMA(1 + 1 / B10) -> 25.38321929 | F11: 9.405110923 | G11: =G10+4.5 -> 4.5 | J11: 0 | K11: 0
F12: 31.78746282 | G12: =G11+4.5 -> 9 | J12: 4.5 | K12: 0
F13: 28.68732973 | G13: 13.5 | J13: 9 | K13: 326
A14: Monte Carlo samples | B14: 10000 | F14: 13.94968438 | G14: 18 | J14: 13.5 | K14: 986
A15: Monte Carlo on? | B15: Yes | F15: 11.66367361 | G15: 22.5 | J15: 18 | K15: 1405
F16: 38.00004156 | G16: 27 | J16: 22.5 | K16: 1665
F17: 16.57295227 | G17: 31.5 | J17: 27 | K17: 1626
F18: 18.78162978 | G18: 36 | J18: 31.5 | K18: 1369
F19: 31.48708973 | G19: 40.5 | J19: 36 | K19: 1021
F20: 17.27905758 | G20: 45 | J20: 40.5 | K20: 704
F21: 35.81305239 | G21: 49.5 | J21: 45 | K21: 437
F22: 7.303493117 | G22: 54 | J22: 49.5 | K22: 234
F23: 31.81274346 | G23: 58.5 | J23: 54 | K23: 113
F24: 26.17788351 | G24: 63 | J24: 58.5 | K24: 64
F25: 25.97777093 | J25: 63 | K25: 30
F26: 23.09420406 | J26: More | K26: 20
F27: 16.03959887 | N27: Histogram plotting:
F28: 23.65913818 | N28: 1) Data->Data Analysis
F29: 29.80231128 | N29: 2) Choose Histogram
F30: 18.20497106 | N30: 3) Input range = column F
F31: 43.13139854 | N31: 4) Bin range = column G
F32: 23.51339307 | N32: 5) Output range = J10-K26
F33: 39.71265484 | H33: Level | I33: 40 | J33: input
F34: 35.03505516 | H34: Confidence | I34: 0.9007 | J34: output
F35: 26.14064334
F36: 26.51615277
F37: 18.73445472
F38: 15.76212472
F39: 22.19673692
F40: 33.33797199
F41: 14.04278848
F42: 12.77344827
F43: 13.25345703
F44: 15.0419251
F45: 18.83916326
F46: 20.3784809
F47: 40.7542826
F48: 40.76372123
F49: 24.71088088
F50: 15.10909914
F51: 35.19008545
F52: 37.26302124
F53: 20.84966004
F54: 16.89813449
F55: 24.04891521
F56: 8.91595846
F57: 9.858230606
F58: 23.49100811
F59: 34.5707058
F60: 31.48593513
F61: 32.03696461
F62: 28.28880275
F63: 16.45664022
F64: 24.98259444
F65: 8.694083881
F66: 26.21804576
F67: 39.17860729
F68: 37.97992275
F69: 29.86467217
F70: 17.65395791
F71: 25.19316349
F72: 25.41756317
F73: 26.26390263
F74: 28.24699814
F75: 10.00261558
F76: 35.76758859
F77: 8.178097146
F78: 13.75658002
F79: 35.50023285
F80: 22.49725781
F81: 12.33912938
F82: 46.20019954
F83: 42.37347053
F84: 14.65770115
F85: 27.15532655
F86: 14.68515058
F87: 39.24388157
F88: 19.04914135
F89: 33.94136351
F90: 22.08200675
F91: 20.39799368
F92: 38.95707749
F93: 37.24561519
F94: 27.10999301
F95: 22.7708147
F96: 24.00583266
F97: 14.85881286
F98: 9.314183049
F99: 36.10814869
F100: 8.429352048
F101: 17.20098732
F102: 26.28904034
F103: 28.47727738
F104: 10.59609134
F105: 24.49739719
F106: 21.49858662
F107: 9.075843316
F108: 10.93302654
F109: 32.80109799
F110: 25.76956939
F111: 25.55411099
F112: 18.78137097
F113: 22.03358015
F114: 17.25564016
F115: 18.03978387
F116: 24.03930735
F117: 23.66246862
F118: 38.94909026
F119: 28.43148829
F120: 17.73205067
F121: 18.37061425
F122: 39.82518832
F123: 11.75436038
F124: 18.27344141
F125: 53.9776898
F126: 17.62065968
F127: 19.93716308
F128: 16.32644224
F129: 33.88177981
F130: 34.02754647
F131: 28.16051732
F132: 20.81526566
F133: 43.22273209
F134: 16.85351707
F135: 23.50542868
F136: 14.64460259
F137: 22.13352154
F138: 53.58870102
F139: 18.56251354
F140: 16.21376301
F141: 24.69877943
F142: 31.02776468
F143: 34.02412024
F144: 19.86335022
F145: 47.12276555
F146: 28.00196367
F147: 11.5924535
F148: 16.08054864
F149: 50.45862108
F150: 24.19074479
F151: 23.5829511
F152: 31.31365436
F153: 53.61722003
F154: 24.00736631
F155: 15.60375066
F156: 17.8254995
F157: 12.68653031
F158: 30.43697823
F159: 27.69357729
F160: 25.1328861
F161: 20.65566258
F162: 22.8650134
F163: 24.20775049
F164: 18.18572624
F165: 31.41544708
F166: 19.50936004
F167: 31.8534798
F168: 30.24789904
F169: 33.44202364
F170: 55.82623968
F171: 10.38344421
F172: 27.57134757
F173: 17.13581064
F174: 31.0374636
F175: 18.34963655
F176: 21.50200436
F177: 15.68835623
F178: 30.53089223
F179: 25.82163738
F180: 28.2061179
F181: 11.0138247
F182: 12.47964559
F183: 12.875436
F184: 25.63879032
F185: 20.60061102
F186: 34.42344384
F187: 40.40942338
F188: 15.32863578
F189: 15.17958197
F190: 9.27533574
F191: 6.192315757
F192: 18.68773866
F193: 20.60438917
F194: 26.93861818
F195: 28.65982365
F196: 11.45776365
F197: 27.05832184
F198: 45.41200219
F199: 14.88658689
F200: 24.66082904
F201: 10.39519397
F202: 7.043251806
F203: 24.94292415
F204: 27.87984925
F205: 40.39985318
F206: 28.63365898
F207: 31.58518666
... 9802 more rows

Sheet DES 1
B2: lambda | C2: 2 | D2: per year
B3: maint cost | C3: 1000 | D3: per event
B4: WACC | C4: 0.08 | D4: per year
B6: i | C6: Cost (WACC = 0) | D6: Cumulative Cost | F6: Cost (WACC not 0) | G6: Cumulative Cost
B7: 1 | C7: =$C$3 -> 1000 | D7: =C7 -> 1000 | F7: =$C$3/(1+$C$4)^(B7/2) -> 962.2504486 | G7: =F7 -> 962.2504486
B8: =B7+1 -> 2 | C8: =$C$3 -> 1000 | D8: =D7+C8 -> 2000 | F8: =$C$3/(1+$C$4)^(B8/2) -> 925.9259259 | G8: =G7+F8 -> 1888.176375
B9: =B8+1 -> 3 | C9: 1000 | D9: =D8+C9 -> 3000 | F9: 890.9726376 | G9: 2779.149012
B10: 4 | C10: 1000 | D10: 4000 | F10: 857.3388203 | G10: 3636.487833
B11: 5 | C11: 1000 | D11: 5000 | F11: 824.9746645 | G11: 4461.462497
B12: 6 | C12: 1000 | D12: 6000 | F12: 793.832241 | G12: 5255.294738
B13: 7 | C13: 1000 | D13: 7000 | F13: 763.8654301 | G13: 6019.160168
B14: 8 | C14: 1000 | D14: 8000 | F14: 735.0298528 | G14: 6754.190021
B15: 9 | C15: 1000 | D15: 9000 | F15: 707.2828056 | G15: 7461.472827
B16: 10 | C16: 1000 | D16: 10000 | F16: 680.583197 | G16: 8142.056024
B17: 11 | C17: 1000 | D17: 11000 | F17: 654.8914867 | G17: 8796.94751
B18: 12 | C18: 1000 | D18: 12000 | F18: 630.1696269 | G18: 9427.117137
B19: 13 | C19: 1000 | D19: 13000 | F19: 606.3810062 | G19: 10033.49814
B20: 14 | C20: 1000 | D20: 14000 | F20: 583.4903953 | G20: 10616.98854
B21: 15 | C21: 1000 | D21: 15000 | F21: 561.4638946 | G21: 11178.45243
B22: 16 | C22: 1000 | D22: 16000 | F22: 540.2688845 | G22: 11718.72132
B23: 17 | C23: 1000 | D23: 17000 | F23: 519.8739765 | G23: 12238.59529
B24: 18 | C24: 1000 | D24: 18000 | F24: 500.2489671 | G24: 12738.84426
B25: 19 | C25: 1000 | D25: 19000 | F25: 481.3647931 | G25: 13220.20905
B26: =B25+1 -> 20 | C26: 1000 | D26: 20000 | F26: 463.1934881 | G26: 13683.40254
B27: =B26+1 -> 21 | C27: 1000 | D27: 21000 | F27: 445.7081417 | G27: 14129.11068
B28: 22 | C28: 1000 | D28: 22000 | F28: 428.8828593 | G28: 14557.99354
B29: 23 | C29: 1000 | D29: 23000 | F29: 412.6927238 | G29: 14970.68627
B30: 24 | C30: 1000 | D30: 24000 | F30: 397.1137586 | G30: 15367.80003
B31: 25 | C31: 1000 | D31: 25000 | F31: 382.1228924 | G31: 15749.92292
B32: 26 | C32: 1000 | D32: 26000 | F32: 367.6979247 | G32: 16117.62084
B33: 27 | C33: 1000 | D33: 27000 | F33: 353.817493 | G33: 16471.43834
B34: 28 | C34: 1000 | D34: 28000 | F34: 340.4610414 | G34: 16811.89938
B35: 29 | C35: 1000 | D35: 29000 | F35: 327.6087898 | G35: 17139.50817
B36: 30 | C36: 1000 | D36: 30000 | F36: 315.241705 | G36: 17454.74987
B37: 31 | C37: 1000 | D37: 31000 | F37: 303.341472 | G37: 17758.09134
B38: 32 | C38: 1000 | D38: 32000 | F38: 291.8904676 | G38: 18049.98181
B39: 33 | C39: 1000 | D39: 33000 | F39: 280.8717334 | G39: 18330.85355
B40: 34 | C40: 1000 | D40: 34000 | F40: 270.2689514 | G40: 18601.1225
B41: 35 | C41: 1000 | D41: 35000 | F41: 260.0664198 | G41: 18861.18892
B42: 36 | C42: 1000 | D42: 36000 | F42: 250.2490291 | G42: 19111.43795
B43: 37 | C43: 1000 | D43: 37000 | F43: 240.8022405 | G43: 19352.24019
B44: 38 | C44: 1000 | D44: 38000 | F44: 231.712064 | G44: 19583.95225
B45: 39 | C45: 1000 | D45: 39000 | F45: 222.9650375 | G45: 19806.91729
B46: 40 | C46: 1000 | D46: 40000 | F46: 214.5482074 | G46: 20021.46549

Sheet DES 2
B2: lambda | D2: 2 | E2: per year
B3: maint cost | D3: 1000 | E3: per event
B4: WACC | D4: 0.08 | E4: per year
B6: i | C6: RN | D6: Next time to failure | E6: Event date | F6: Cost (WACC not 0) | G6: Cum
B7: 0 | C7: - | D7: 0 | E7: 0 | F7: 0 | G7: 0
B8: 1 | C8: =RAND() -> 0.8125165975 | D8: =-LN(1-C8)/$D$2 -> 0.8370324788 | E8: =D8 -> 0.8370324788 | F8: =$D$3/(1+$D$4)^(B8/2) -> 962.2504486 | G8: =G7+F8 -> 962.2504486
B9: =B8+1 -> 2 | C9: =RAND() -> 0.4728167459 | D9: =-LN(1-C9)/$D$2 -> 0.3201035301 | E9: =E8+D9 -> 1.157136009 | F9: 925.9259259 | G9: 1888.176375
B10: =B9+1 -> 3 | C10: =RAND() -> 0.004242512794 | D10: =-LN(1-C10)/$D$2 -> 0.002125768893 | E10: =E9+D10 -> 1.159261778 | F10: 890.9726376 | G10: 2779.149012
B11: 4 | C11: 0.1028925331 | D11: 0.05428980855 | E11: 1.213551586 | F11: 857.3388203 | G11: 3636.487833
B12: 5 | C12: 0.5762958316 | D12: 0.4293598917 | E12: 1.642911478 | F12: 824.9746645 | G12: 4461.462497
B13: 6 | C13: 0.3168507477 | D13: 0.1905209594 | E13: 1.833432437 | F13: 793.832241 | G13: 5255.294738
B14: 7 | C14: 0.639056116 | D14: 0.5095163893 | E14: 2.342948827 | F14: 763.8654301 | G14: 6019.160168
B15: 8 | C15: 0.1752025307 | D15: 0.09630870729 | E15: 2.439257534 | F15: 735.0298528 | G15: 6754.190021
B16: 9 | C16: 0.3168811214 | D16: 0.1905431905 | E16: 2.629800725 | F16: 707.2828056 | G16: 7461.472827
B17: 10 | C17: 0.2536188987 | D17: 0.1462594748 | E17: 2.776060199 | F17: 680.583197 | G17: 8142.056024
B18: 11 | C18: 0.5789482963 | D18: 0.4324998206 | E18: 3.20856002 | F18: 654.8914867 | G18: 8796.94751
B19: 12 | C19: 0.3418201181 | D19: 0.2091385041 | E19: 3.417698524 | F19: 630.1696269 | G19: 9427.117137
B20: 13 | C20: 0.198954095 | D20: 0.1109185119 | E20: 3.528617036 | F20: 606.3810062 | G20: 10033.49814
B21: 14 | C21: 0.1572901406 | D21: 0.08556627823 | E21: 3.614183314 | F21: 583.4903953 | G21: 10616.98854
B22: 15 | C22: 0.7881139524 | D22: 0.77585333 | E22: 4.390036644 | F22: 561.4638946 | G22: 11178.45243
B23: 16 | C23: 0.205756331 | D23: 0.1151824885 | E23: 4.505219133 | F23: 540.2688845 | G23: 11718.72132
B24: 17 | C24: 0.8554583692 | D24: 0.9670938553 | E24: 5.472312988 | F24: 519.8739765 | G24: 12238.59529
B25: 18 | C25: 0.04630884104 | D25: 0.02370769634 | E25: 5.496020684 | F25: 500.2489671 | G25: 12738.84426
B26: 19 | C26: 0.7816714554 | D26: 0.7608771327 | E26: 6.256897817 | F26: 481.3647931 | G26: 13220.20905
B27: =B26+1 -> 20 | C27: 0.4933989134 | D27: 0.3400156983 | E27: 6.596913515 | F27: 463.1934881 | G27: 13683.40254
B28: =B27+1 -> 21 | C28: 0.8229248821 | D28: 0.8655906208 | E28: 7.462504136 | F28: 445.7081417 | G28: 14129.11068
B29: 22 | C29: 0.7730583327 | D29: 0.7415311334 | E29: 8.20403527 | F29: 428.8828593 | G29: 14557.99354
B30: 23 | C30: 0.209507059 | D30: 0.1175492761 | E30: 8.321584546 | F30: 412.6927238 | G30: 14970.68627
B31: 24 | C31: 0.3922930071 | D31: 0.2490312164 | E31: 8.570615762 | F31: 397.1137586 | G31: 15367.80003
B32: 25 | C32: 0.7846392196 | D32: 0.7677203044 | E32: 9.338336066 | F32: 382.1228924 | G32: 15749.92292
B33: 26 | C33: 0.4433390747 | D33: 0.2928994881 | E33: 9.631235554 | F33: 367.6979247 | G33: 16117.62084
B34: 27 | C34: 0.8394895867 | D34: 0.9146982292 | E34: 10.54593378 | F34: 353.817493 | G34: 16471.43834
B35: 28 | C35: 0.8768309216 | D35: 1.047098623 | E35: 11.59303241 | F35: 340.4610414 | G35: 16811.89938
B36: 29 | C36: 0.1569294068 | D36: 0.08535229201 | E36: 11.6783847 | F36: 327.6087898 | G36: 17139.50817
B37: 30 | C37: 0.07887721404 | D37: 0.04108096676 | E37: 11.71946567 | F37: 315.241705 | G37: 17454.74987
B38: 31 | C38: 0.9228060685 | D38: 1.280717216 | E38: 13.00018288 | F38: 303.341472 | G38: 17758.09134
B39: 32 | C39: 0.2145247954 | D39: 0.1207331941 | E39: 13.12091608 | F39: 291.8904676 | G39: 18049.98181
B40: 33 | C40: 0.7085345878 | D40: 0.6164169674 | E40: 13.73733304 | F40: 280.8717334 | G40: 18330.85355
B41: 34 | C41: 0.8077924927 | D41: 0.8245898618 | E41: 14.5619229 | F41: 270.2689514 | G41: 18601.1225
B42: 35 | C42: 0.132474557 | D42: 0.07105521926 | E42: 14.63297812 | F42: 260.0664198 | G42: 18861.18892
B43: 36 | C43: 0.6236510681 | D43: 0.4886192778 | E43: 15.1215974 | F43: 250.2490291 | G43: 19111.43795
B44: 37 | C44: 0.6704088082 | D44: 0.5549511025 | E44: 15.6765485 | F44: 240.8022405 | G44: 19352.24019
B45: 38 | C45: 0.2148803261 | D45: 0.120959561 | E45: 15.79750807 | F45: 231.712064 | G45: 19583.95225
B46: 39 | C46: 0.8956875132 | D46: 1.130182102 | E46: 16.92769017 | F46: 222.9650375 | G46: 19806.91729
B47: 40 | C47: 0.08256084005 | D47: 0.04308450597 | E47: 16.97077467 | F47: 214.5482074 | G47: 20021.46549
B48: 41 | C48: 0.8729086072 | D48: 1.031424412 | E48: 18.00219908 | F48: 206.4491088 | G48: 20227.9146
B49: 42 | C49: 0.4517854777 | D49: 0.3005443023 | E49: 18.30274339 | F49: 198.6557476 | G49: 20426.57035
B50: 43 | C50: 0.9393648087 | D50: 1.40143992 | E50: 19.70418331 | F50: 191.1565823 | G50: 20617.72693
B51: 44 | C51: 0.1530145451 | D51: 0.08303587851 | E51: 19.78721919 | F51: 183.940507 | G51: 20801.66744
B52: 45 | C52: 0.4669466121 | D52: 0.3145668475 | E52: 20.10178603 | F52: 176.9968354 | G52: 20978.66428
B53: 46 | C53: 0.5651167625 | D53: 0.4163388517 | E53: 20.51812488 | F53: 170.3152843 | G53: 21148.97956
B54: 47 | C54: 0.7831192179 | D54: 0.7642037339 | E54: 21.28232862 | F54: 163.8859587 | G54: 21312.86552
B55: 48 | C55: 0.3494065445 | D55: 0.2149351621 | E55: 21.49726378 | F55: 157.6993373 | G55: 21470.56486
B56: 49 | C56: 0.5030481508 | D56: 0.3496310702 | E56: 21.84689485 | F56: 151.7462581 | G56: 21622.31111
B57: 50 | C57: 0.1248932163 | D57: 0.06670468079 | E57: 21.91359953 | F57: 146.0179049 | G57: 21768.32902
B58: 51 | C58: 0.3828879837 | D58: 0.2413523609 | E58: 22.15495189 | F58: 140.5057945 | G58: 21908.83481
B59: 52 | C59: 0.7450794518 | D59: 0.6834016791 | E59: 22.83835357 | F59: 135.2017638 | G59: 22044.03658

Sheet DES 3
A8: Eta | B8: 74000
A9: Miles per year | B9: 200000 | D9: Avg Events (per year) | E9: 2.551144886 | G9: Ranges
A10: Beta | B10: 2 | D10: Annual cost | E10: 12755.72443 | F10: 2 | G10: 2.5 | H10: 2.6 | J10: Bin | K10: Frequency
A11: Maint Event Miles | B11: 2740 | C11: miles | F11: 1 | G11: 2.52 | H11: =H10+0.05 -> 2.65 | J11: 2.6 | K11: 0
A12: Support life (running start) | B12: 1 | C12: years | F12: 4 | G12: 2.54 | H12: =H11+0.05 -> 2.7 | J12: 2.65 | K12: 5
F13: 4 | G13: 2.56 | H13: 2.75 | J13: 2.7 | K13: 27
A14: Monte Carlo samples | B14: 10000 | F14: 3 | G14: 2.58 | H14: 2.8 | J14: 2.75 | K14: 139
A15: Monte Carlo on | B15: Yes | F15: 4 | G15: 2.6 | H15: 2.85 | J15: 2.8 | K15: 440
F16: 2 | G16: 2.62 | H16: 2.9 | J16: 2.85 | K16: 1153
A17: cf | B17: 5000 | F17: 2 | G17: 2.64 | H17: 2.95 | J17: 2.9 | K17: 1878
F18: 2 | G18: 2.68 | H18: 3 | J18: 2.95 | K18: 2292
A19: Availability | B19: =(B9-E9*B11)/B9 -> 0.9650493151 | F19: 2 | G19: 2.7 | H19: 3.05 | J19: 3 | K19: 2037
F20: 2 | G20: 2.72 | H20: 3.1 | J20: 3.05 | K20: 1228
A21: discount rate (r ) | B21: 0 | F21: 3 | G21: 2.74 | H21: 3.15 | J21: 3.1 | K21: 568
F22: 3 | G22: 2.76 | H22: 3.2 | J22: 3.15 | K22: 170
F23: 2 | G23: 2.78 | H23: 3.25 | J23: 3.2 | K23: 50
F24: 4 | G24: 2.8 | H24: 3.3 | J24: 3.25 | K24: 11
F25: 2 | J25: 3.3 | K25: 2
F26: 3 | J26: More | K26: 0
F27: 4
F28: 2
F29: 2
F30: 2
F31: 1
F32: 2
F33: 2 | H33: Level | I33: 2.97
F34: 2 | H34: Confidence | I34: 0.9080666667
F35: 2
F36: 3
F37: 1
F38: 2
F39: 3
F40: 5
F41: 3
F42: 3
F43: 3
F44: 2
F45: 3
F46: 3
F47: 1
F48: 2
F49: 3
F50: 2
F51: 2
F52: 3
F53: 1
F54: 2
F55: 2
F56: 3
F57: 3
F58: 2
F59: 1
F60: 3
F61: 2
F62: 3
F63: 2
F64: 3
F65: 3
F66: 3
F67: 2
F68: 2
F69: 2
F70: 2
F71: 2
F72: 2
F73: 3
F74: 2
F75: 1
F76: 2
F77: 2
F78: 2
F79: 3
F80: 4
F81: 1
F82: 2
F83: 3
F84: 2
F85: 3
F86: 3
F87: 3
F88: 2
F89: 4
F90: 3
F91: 3
F92: 2
F93: 3
F94: 3
F95: 3
F96: 3
F97: 3
F98: 4
F99: 4
F100: 3
F101: 5
F102: 3
F103: 3
F104: 3
F105: 3
F106: 3
F107: 2
F108: 2
F109: 3
F110: 2
F111: 1
F112: 1
F113: 3
F114: 2
F115: 3
F116: 4
F117: 2
F118: 3
F119: 3
F120: 2
F121: 1
F122: 3
F123: 2
F124: 2
F125: 2
F126: 3
F127: 3
F128: 1
F129: 3
F130: 2
F131: 2
F132: 3
F133: 3
F134: 2
F135: 3
F136: 2
F137: 3
F138: 5
F139: 4
F140: 3
F141: 2
F142: 3
F143: 3
F144: 3
F145: 2
F146: 3
F147: 3
F148: 2
F149: 2
F150: 3
F151: 3
F152: 1
F153: 3
F154: 3
F155: 4
F156: 1
F157: 2
F158: 2
F159: 2
F160: 3
F161: 1
F162: 3
F163: 3
F164: 4
F165: 2
F166: 1
F167: 3
F168: 3
F169: 0
F170: 3
F171: 2
F172: 2
F173: 2
F174: 2
F175: 2
F176: 1
F177: 2
F178: 4
F179: 1
F180: 2
F181: 2
F182: 3
F183: 2
F184: 2
F185: 3
F186: 3
F187: 2
F188: 3
F189: 4
F190: 2
F191: 4
F192: 2
F193: 2
F194: 4
F195: 2
F196: 2
F197: 3
F198: 3
F199: 2
F200: 4
F201: 3
F202: 2
F203: 4
F204: 1
F205: 2
F206: 3
F207: 3
... 9802 more rows

Sheet Avail 1
C3: Operation cycle | D3: 2000 | E3: op hours/year
C4: Support life | D4: 5 | E4: years
C5: Failures | D5: 2 | E5: per year (corrective maintenance required)
C6: MTTR | D6: 40 | E6: op hours
C7: Preventative maint | D7: 1 | E7: per year
C8: MTPM | D8: 8 | E8: op hours
C9: LDT | D9: 10 | E9: op hours
C11: Total number of maintenance actions | F11: =(D5*D4+D7*D4) -> 15
C12: M bar | F12: =(D6*D5*D4+D8*D7*D4)/F11 -> 29.33333333 | G12: op hours/maint event
C13: MDT | F13: =((D6+D9)*D5*D4+D8*D7*D4)/F11 -> 36 | G13: op hours/maint event
C14: MTBF | F14: =D4*D3/D5/D4 -> 1000 | G14: op hours
C15: Total operational cycle | F15: =D4*D3 -> 10000 | G15: op hours
C16: Total downtime | F16: =F11*F13 -> 540 | G16: op hours
C17: Total uptime | F17: =F15-F16 -> 9460 | G17: op hours
C18: MTBM | F18: =F17/F11 -> 630.6666667 | G18: op hours
C20: Ai | F20: =F14/(F14+D6) -> 0.9615384615
C21: Aa | F21: =F18/(F18+F12) -> 0.9555555556
C22: Ao | F22: =F18/(F18+F13) -> 0.946 | G22: =F17/F15 -> 0.946

Sheet Avail 2
B6: failure rate (lambda) | D6: 1
B7: repair rate (mu) | D7: 1
B8: MTBF | D8: =1/D6 -> 1
B9: MTTR | D9: =1/D7 -> 1
B10: Ai | D10: =D8/(D8+D9) -> 0.5
B12: Simulation:
G13: Ranges
C14: Mean | D14: 0.4990595841 | F14: 0.9413019671 | G14: 0 | J14: Bin | K14: Frequency
F15: 0.2720038607 | G15: =G14+0.07 -> 0.07 | J15: 0 | K15: 0
F16: 0.803689144 | G16: =G15+0.07 -> 0.14 | J16: 0.07 | K16: 659
F17: 0.1810156661 | G17: 0.21 | J17: 0.14 | K17: 704
A18: Monte Carlo samples | B18: 10000 | F18: 0.1348612655 | G18: 0.28 | J18: 0.21 | K18: 724
A19: Monte Carlo on? | B19: Yes | F19: 0.5245353268 | G19: 0.35 | J19: 0.28 | K19: 718
F20: 0.0003437344519 | G20: 0.42 | J20: 0.35 | K20: 724
F21: 0.408956929 | G21: 0.49 | J21: 0.42 | K21: 718
F22: 0.8449401813 | G22: 0.56 | J22: 0.49 | K22: 693
F23: 0.4600983875 | G23: 0.63 | J23: 0.56 | K23: 683
F24: 0.4030042653 | G24: 0.7 | J24: 0.63 | K24: 677
F25: 0.4275809435 | G25: 0.77 | J25: 0.7 | K25: 700
F26: 0.4776525618 | G26: 0.84 | J26: 0.77 | K26: 738
F27: 0.04297120515 | G27: 0.91 | J27: 0.84 | K27: 679
F28: 0.1201212396 | G28: 0.98 | J28: 0.91 | K28: 690
F29: 0.5577557666 | G29: 1.05 | J29: 0.98 | K29: 686
F30: 0.9035140901 | J30: 1.05 | K30: 207
F31: 0.996139021 | J31: More | K31: 0 | N31: Histogram plotting:
F32: 0.1436257232 | N32: 1) Data->Data Analysis
F33: 0.5326854813 | N33: 2) Choose Histogram
F34: 0.9775950671 | N34: 3) Input range = column F
F35: 0.8355179109 | N35: 4) Bin range = column G
F36: 0.02059570793 | N36: 5) Output range = J10-K26
F37: 0.1184874243 | H37: Level | I37: 40 | J37: input
F38: 0.8676553261 | H38: Confidence | I38: 0.9007 | J38: output
F39: 0.6135138424
F40: 0.4013011225
F41: 0.5172629599
F42: 0.8934360145
F43: 0.44239547
F44: 0.6734326866
F45: 0.9888519143
F46: 0.3291540097
F47: 0.3254297676
F48: 0.8041106353
F49: 0.4131988511
F50: 0.4892343746
F51: 0.4625930091
F52: 0.1301603754
F53: 0.497710159
F54: 0.8441817493
F55: 0.1816308585
F56: 0.7993799527
F57: 0.3391790544
F58: 0.9809840613
F59: 0.3996780955
F60: 0.8900826631
F61: 0.7216861238
F62: 0.9631455394
F63: 0.6945460459
F64: 0.9032003235
F65: 0.9535012068
F66: 0.2850532448
F67: 0.5922817676
F68: 0.8494169987
F69: 0.6153924836
F70: 0.9216982871
F71: 0.3298385173
F72: 0.7442537221
F73: 0.953020149
F74: 0.9707572718
F75: 0.2993172649
F76: 0.1707177102
F77: 0.5317670358
F78: 0.1685556029
F79: 0.9666052994
F80: 0.4828200917
F81: 0.6310866723
F82: 0.8773622317
F83: 0.1527581191
F84: 0.1250119818
F85: 0.1977787592
F86: 0.4353290608
F87: 0.1153981854
F88: 0.5451607885
F89: 0.2906245186
F90: 0.4727251836
F91: 0.7154920496
F92: 0.9649933596
F93: 0.03426821047
F94: 0.1315276143
F95: 0.6082256246
F96: 0.5141365207
F97: 0.9110699954
F98: 0.06188043561
F99: 0.3080245596
F100: 0.2618282079
F101: 0.315113694
F102: 0.4050845074
F103: 0.005007873352
F104: 0.7011562032
F105: 0.6058604224
F106: 0.5899093165
F107: 0.5364867743
F108: 0.4260910196
F109: 0.2437363753
F110: 0.5202885278
F111: 0.3571024229
F112: 0.1150050685
F113: 0.5781817054
F114: 0.06935871864
F115: 0.06973672409
F116: 0.8993533974
F117: 0.1478363716
F118: 0.7582781883
F119: 0.8374010894
F120: 0.02943183351
F121: 0.9876233663
F122: 0.8366752106
F123: 0.9536245289
F124: 0.9090234755
F125: 0.2574265206
F126: 0.1895663397
F127: 0.2024702132
F128: 0.2402757446
F129: 0.4257747488
F130: 0.7211874682
F131: 0.1434027126
F132: 0.5126248197
F133: 0.6901535529
F134: 0.09971752577
F135: 0.5520379503
F136: 0.3239290419
F137: 0.4955664091
F138: 0.8757351508
F139: 0.2530592254
F140: 0.2217578292
F141: 0.8207759041
F142: 0.3243893745
F143: 0.3639448677
F144: 0.8395931715
F145: 0.1635305864
F146: 0.5080913334
F147: 0.06985732363
F148: 0.06444593031
F149: 0.2625015799
F150: 0.5545511452
F151: 0.2767056723
F152: 0.7576345431
F153: 0.9410745728
F154: 0.6939862022
F155: 0.3102047183
F156: 0.741994471
F157: 0.5674917472
F158: 0.8859097674
F159: 0.7897602637
F160: 0.9761085565
F161: 0.8577441112
F162: 0.3950369214
F163: 0.02236883198
F164: 0.7100172447
F165: 0.2972146969
F166: 0.4590427262
F167: 0.209005297
F168: 0.34254758
F169: 0.7897049273
F170: 0.9900990605
F171: 0.2100026289
F172: 0.6846912233
F173: 0.7366326861
F174: 0.4835909923
F175: 0.3228823977
F176: 0.7772739179
F177: 0.129064707
F178: 0.9780365414
F179: 0.1314390652
F180: 0.07442069551
F181: 0.8637603788
F182: 0.2088440085
F183: 0.03197325166
F184: 0.3417220012
F185: 0.1928113869
F186: 0.7291296548
F187: 0.9333447192
F188: 0.8577238495
F189: 0.4587983384
F190: 0.6487566009
F191: 0.2385762561
F192: 0.9088148646
F193: 0.7133724987
F194: 0.6305575867
F195: 0.1100607399
F196: 0.05039704477
F197: 0.5861921136
F198: 0.3538891488
F199: 0.06825121605
F200: 0.7273095067
F201: 0.8660298646
F202: 0.01294109642
F203: 0.3675478669
F204: 0.6054204711
F205: 0.8100876694
F206: 0.8883785484
... 9807 more rows

Sheet Avail 3
B3: N | C3: 20
B4: L | C4: 2
B5: Asys | C5: 0.95
C8: i | D8: A term | E8: A
C9: 0 | D9: =(FACT($C$3)/FACT(C9)/FACT($C$3-C9))*$C$5^($C$3-C9)*(1-$C$5)^C9 -> 0.3584859224 | E9: =D9 -> 0.3584859224
C10: =1+C9 -> 1 | D10: =(FACT($C$3)/FACT(C10)/FACT($C$3-C10))*$C$5^($C$3-C10)*(1-$C$5)^C10 -> 0.3773536025 | E10: =E9+D10 -> 0.7358395249
C11: =1+C10 -> 2 | D11: 0.1886768013 | E11: =E10+D11 -> 0.9245163262
C12: 3 | D12: 0.05958214777 | E12: 0.984098474
C13: 4 | D13: 0.01332758569 | E13: 0.9974260597
C14: 5 | D14: 0.00224464601 | E14: 0.9996707057
C15: 6 | D15: 0.0002953481592 | E15: 0.9999660538
C16: 7 | D16: 3.108927992e-05 | E16: 0.9999971431
C17: 8 | D17: 2.658951572e-06 | E17: 0.9999998021
C18: 9 | D18: 1.865930928e-07 | E18: 0.9999999887
C19: 10 | D19: 1.0802758e-08 | E19: 0.9999999995
C20: 11 | D20: 5.168783733e-10 | E20: 1
C21: 12 | D21: 2.040309368e-11 | E21: 1
C22: 13 | D22: 6.608289452e-13 | E22: 1
C23: 14 | D23: 1.73902354e-14 | E23: 1
C24: 15 | D24: 3.66110219e-16 | E24: 1
C25: 16 | D25: 6.021549654e-18 | E25: 1

Sheet Avail 4
B3: MTBM | C3: 1000 | D3: hours
B4: MDT | C4: 17.3 | D4: hours
B5: MTTR | C5: 2 | D5: hours
B6: failure rate | C6: 0.0833 | D6: failures/hour
B8: mu(rr) | C8: =1/C5 -> 0.5 | D8: repairs/hour
B9: Ao | C9: =C3/(C3+C4) -> 0.9829942003
B10: Pr(tm < td) | C10: =C8/(C8+C6) -> 0.8571918395
B12: AR | C12: =C9+(1-C9)*C10 -> 0.997571433

Sheet Avail 5
B3: N | C3: 20 | H3: N | I3: 21
B4: L | C4: 2 | H4: L | I4: =C4+(I3-C3) -> 3 | K4: CdeltaA | L4: =I6*I7/(C5-I5) -> 7198646.654
B5: Asys | C5: 0.95 | H5: Asys | I5: 0.922217
H6: v | I6: 0.01
H7: Cp | I7: 20000000
C9: i | D9: A term | E9: A | I9: i | J9: A term | K9: A
C10: 0 | D10: =(FACT($C$3)/FACT(C10)/FACT($C$3-C10))*$C$5^($C$3-C10)*(1-$C$5)^C10 -> 0.3584859224 | E10: =D10 -> 0.3584859224 | I10: 0 | J10: =(FACT($I$3)/FACT(I10)/FACT($I$3-I10))*$I$5^($I$3-I10)*(1-$I$5)^I10 -> 0.1825978237 | K10: =J10 -> 0.1825978237
C11: =1+C10 -> 1 | D11: =(FACT($C$3)/FACT(C11)/FACT($C$3-C11))*$C$5^($C$3-C11)*(1-$C$5)^C11 -> 0.3773536025 | E11: =E10+D11 -> 0.7358395249 | I11: =1+I10 -> 1 | J11: =(FACT($I$3)/FACT(I11)/FACT($I$3-I11))*$I$5^($I$3-I11)*(1-$I$5)^I11 -> 0.3234196908 | K11: =K10+J11 -> 0.5060175145
C12: =1+C11 -> 2 | D12: 0.1886768013 | E12: =E11+D12 -> 0.9245163262 | I12: =1+I11 -> 2 | J12: 0.2727834534 | K12: =K11+J12 -> 0.7788009679
C13: 3 | D13: 0.05958214777 | E13: 0.984098474 | I13: 3 | J13: 0.1457142198 | K13: 0.9245151877
C14: 4 | D14: 0.01332758569 | E14: 0.9974260597 | I14: 4 | J14: 0.05530520604 | K14: 0.9798203937
C15: 5 | D15: 0.00224464601 | E15: 0.9996707057 | I15: 5 | J15: 0.01585975585 | K15: 0.9956801496
C16: 6 | D16: 0.0002953481592 | E16: 0.9999660538 | I16: 6 | J16: 0.003567112409 | K16: 0.999247262
C17: 7 | D17: 3.108927992e-05 | E17: 0.9999971431 | I17: 7 | J17: 0.0006447058041 | K17: 0.9998919678
C18: 8 | D18: 2.658951572e-06 | E18: 0.9999998021 | I18: 8 | J18: 9.515929031e-05 | K18: 0.9999871271
C19: 9 | D19: 1.865930928e-07 | E19: 0.9999999887 | I19: 9 | J19: 1.159320734e-05 | K19: 0.9999987203
C20: 10 | D20: 1.0802758e-08 | E20: 0.9999999995 | I20: 10 | J20: 1.173373876e-06 | K20: 0.9999998937
C21: 11 | D21: 5.168783733e-10 | E21: 1 | I21: 11 | J21: 9.896644735e-08 | K21: 0.9999999926
C22: 12 | D22: 2.040309368e-11 | E22: 1 | I22: 12 | J22: 6.955979607e-09 | K22: 0.9999999996
C23: 13 | D23: 6.608289452e-13 | E23: 1 | I23: 13 | J23: 4.061711036e-10 | K23: 1
C24: 14 | D24: 1.73902354e-14 | E24: 1 | I24: 14 | J24: 1.957593616e-11 | K24: 1
C25: 15 | D25: 3.66110219e-16 | E25: 1 | I25: 15 | J25: 7.705146254e-13 | K25: 1
C26: 16 | D26: 6.021549654e-18 | E26: 1 | I26: 16 | J26: 2.437045963e-14 | K26: 1

Sheet Avail 6
C5: DSI original | D5: 50000
C6: DSI added | D6: 5000
C7: DSI modified | D7: 3000
C8: PM(develop) | D8: 146 | E8: person months
C9: ACT | D9: =(D6+D7)/D5 -> 0.16
C11: PM(maint) | D11: =(D9^1.05)*D8 -> 21.31468101 | E11: person months
C12: Maint Staffing | D12: =D11/12 -> 1.776223418 | E12: people

Sheet Avail 7
B2: T | C2: 200000 | D2: miles
B3: M | C3: 2.59 | D3: demands per year
B4: cf | C4: 5000 | D4: per maint event
B5: Maint time | C5: 2740 | D5: miles
B7: Maint Cost | C7: =C3*C4 -> 12950 | D7: per bus per year
B9: Availability | C9: =(C2-C3*C5)/C2 -> 0.964517

Sheet Avail 8
B3: Use the "DES 3" simulator
C5: Set the following data on the "DES 3" sheet:
C6: Support life | D6: 1 | E6: years | F6: Cell B12
C7: Samples | D7: 30000 | F7: Cell B14
C8: Vary the discount rate | F8: Cell B21
C9: The Cost per year is shown | F9: Cell E10

Sheet Avail 9
C2: This analysis only works for beta = 2 (this is a special case where the integrals can be worked in closed form)
C3: Also assumes 0 maintenance time
C5: eta | D5: 74000
C6: gamma | D6: 0 | G6: t | H6: x | I6: erf(x) | J6: R(tp) | K6: cf | L6: cp | M6: Cost(tp)
C7: cp | D7: 2050 | G7: 0 | H7: =(G7-$D$6)/$D$5 -> 0 | I7: =ERF(H7) -> 0 | J7: =EXP(-(H7^2)) -> 1 | K7: =$D$8/((1+$D$9)^(G7/$D$10)) -> 5000 | L7: =$D$7/((1+$D$9)^(G7/$D$10)) -> 2050
C8: cf | D8: 5000 | G8: =1000+G7 -> 1000 | H8: =(G8-$D$6)/$D$5 -> 0.01351351351 | I8: =ERF(H8) -> 0.01524743898 | J8: =EXP(-(H8^2)) -> 0.9998174016 | K8: =$D$8/((1+$D$9)^(G8/$D$10)) -> 5000 | L8: =$D$7/((1+$D$9)^(G8/$D$10)) -> 2050 | M8: =(J8*L8+(1-J8)*K8)/($D$5*SQRT(PI()/4)*I8) -> 2.050663486
C9: r | D9: 0 | G9: =1000+G8 -> 2000 | H9: 0.02702702703 | I9: 0.03048931032 | J9: 0.9992698065 | K9: 5000 | L9: 2050 | M9: =(J9*L9+(1-J9)*K9)/($D$5*SQRT(PI()/4)*I9) -> 1.026326878
C10: annual | D10: 200000 | E10: miles | G10: 3000 | H10: 0.04054054054 | I10: 0.04572005249 | J10: 0.9983578144 | K10: 5000 | L10: 2050 | M10: 0.6853234152
G11: 4000 | H11: 0.05405405405 | I11: 0.06093411613 | J11: 0.9970824237 | K11: 5000 | L11: 2050 | M11: 0.5151530047
G12: 5000 | H12: 0.06756756757 | I12: 0.07612597013 | J12: 0.9954450293 | K12: 5000 | L12: 2050 | M12: 0.4133155525
G13: 6000 | H13: 0.08108108108 | I13: 0.09129010768 | J13: 0.9934474207 | K13: 5000 | L13: 2050 | M13: 0.3456442982
G14: 7000 | H14: 0.09459459459 | I14: 0.1064210522 | J14: 0.9910917781 | K14: 5000 | L14: 2050 | M14: 0.297496291
G15: 8000 | H15: 0.1081081081 | I15: 0.1215133634 | J15: 0.9883806689 | K15: 5000 | L15: 2050 | M15: 0.2615500089
G16: 9000 | H16: 0.1216216216 | I16: 0.136561643 | J16: 0.9853170427 | K16: 5000 | L16: 2050 | M16: 0.2337378983
G17: 10000 | H17: 0.1351351351 | I17: 0.1515605405 | J17: 0.9819042262 | K17: 5000 | L17: 2050 | M17: 0.2116193895
G18: 11000 | H18: 0.1486486486 | I18: 0.1665047591 | J18: 0.9781459169 | K18: 5000 | L18: 2050 | M18: 0.1936413594
G19: 12000 | H19: 0.1621621622 | I19: 0.1813890611 | J19: 0.974046177 | K19: 5000 | L19: 2050 | M19: 0.1787683612
G20: 13000 | H20: 0.1756756757 | I20: 0.1962082735 | J20: 0.9696094252 | K20: 5000 | L20: 2050 | M20: 0.1662835191
G21: 14000 | H21: 0.1891891892 | I21: 0.2109572933 | J21: 0.9648404295 | K21: 5000 | L21: 2050 | M21: 0.1556747525
G22: 15000 | H22: 0.2027027027 | I22: 0.2256310928 | J22: 0.9597442985 | K22: 5000 | L22: 2050 | M22: 0.146566511
G23: 16000 | H23: 0.2162162162 | I23: 0.2402247249 | J23: 0.9543264721 | K23: 5000 | L23: 2050 | M23: 0.1386771093
G24: 17000 | H24: 0.2297297297 | I24: 0.2547333278 | J24: 0.9485927118 | K24: 5000 | L24: 2050 | M24: 0.1317911192
G25: 18000 | H25: 0.2432432432 | I25: 0.2691521298 | J25: 0.9425490907 | K25: 5000 | L25: 2050 | M25: 0.1257409654
G26: 19000 | H26: 0.2567567568 | I26: 0.2834764543 | J26: 0.9362019829 | K26: 5000 | L26: 2050 | M26: 0.1203943328
G27: 20000 | H27: 0.2702702703 | I27: 0.2977017241 | J27: 0.9295580517 | K27: 5000 | L27: 2050 | M27: 0.1156453512
G28: 21000 | H28: 0.2837837838 | I28: 0.3118234657 | J28: 0.9226242388 | K28: 5000 | L28: 2050 | M28: 0.1114082991
G29: 22000 | H29: 0.2972972973 | I29: 0.3258373135 | J29: 0.9154077514 | K29: 5000 | L29: 2050 | M29: 0.1076130248
G30: 23000 | H30: 0.3108108108 | I30: 0.3397390137 | J30: 0.9079160504 | K30: 5000 | L30: 2050 | M30: 0.1042015614
G31: 24000 | H31: 0.3243243243 | I31: 0.3535244283 | J31: 0.9001568371 | K31: 5000 | L31: 2050 | M31: 0.1011255888
G32: 25000 | H32: 0.3378378378 | I32: 0.3671895381 | J32: 0.8921380403 | K32: 5000 | L32: 2050 | M32: 0.09834450384
G33: 26000 | H33: 0.3513513514 | I33: 0.3807304469 | J33: 0.8838678026 | K33: 5000 | L33: 2050 | M33: 0.09582393717
G34: 27000 | H34: 0.3648648649 | I34: 0.394143384 | J34: 0.8753544669 | K34: 5000 | L34: 2050 | M34: 0.09353459834
G35: 28000 | H35: 0.3783783784 | I35: 0.4074247072 | J35: 0.8666065623 | K35: 5000 | L35: 2050 | M35: 0.09145136922
G36: 29000 | H36: 0.3918918919 | I36: 0.4205709059 | J36: 0.8576327899 | K36: 5000 | L36: 2050 | M36: 0.08955258473
G37: 30000 | H37: 0.4054054054 | I37: 0.4335786034 | J37: 0.8484420083 | K37: 5000 | L37: 2050 | M37: 0.08781945741
G38: 31000 | H38: 0.4189189189 | I38: 0.4464445591 | J38: 0.8390432196 | K38: 5000 | L38: 2050 | M38: 0.08623561347
G39: 32000 | H39: 0.4324324324 | I39: 0.4591656706 | J39: 0.829445554 | K39: 5000 | L39: 2050 | M39: 0.08478671571
G40: 33000 | H40: 0.4459459459 | I40: 0.4717389759 | J40: 0.8196582559 | K40: 5000 | L40: 2050 | M40: 0.08346015514
G41: 34000 | H41: 0.4594594595 | I41: 0.4841616543 | J41: 0.8096906686 | K41: 5000 | L41: 2050 | M41: 0.08224479692
G42: 35000 | H42: 0.472972973 | I42: 0.4964310285 | J42: 0.7995522199 | K42: 5000 | L42: 2050 | M42: 0.08113076992
G43: 36000 | H43: 0.4864864865 | I43: 0.5085445656 | J43: 0.7892524072 | K43: 5000 | L43: 2050 | M43: 0.08010929133
G44: 37000 | H44: 0.5 | I44: 0.5204998778 | J44: 0.7788007831 | K44: 5000 | L44: 2050 | M44: 0.07917251976
G45: 38000 | H45: 0.5135135135 | I45: 0.5322947233 | J45: 0.7682069403 | K45: 5000 | L45: 2050 | M45: 0.07831343146
G46: 39000 | H46: 0.527027027 | I46: 0.5439270067 | J46: 0.7574804979 | K46: 5000 | L46: 2050 | M46: 0.0775257157
G47: 40000 | H47: 0.5405405405 | I47: 0.5553947797 | J47: 0.7466310865 | K47: 5000 | L47: 2050 | M47: 0.07680368574
G48: 41000 | H48: 0.5540540541 | I48: 0.5666962405 | J48: 0.7356683341 | K48: 5000 | L48: 2050 | M48: 0.07614220292
G49: 42000 | H49: 0.5675675676 | I49: 0.5778297341 | J49: 0.7246018526 | K49: 5000 | L49: 2050 | M49: 0.07553661154
G50: 43000 | H50: 0.5810810811 | I50: 0.5887937521 | J50: 0.7134412238 | K50: 5000 | L50: 2050 | M50: 0.07498268288
G51: 44000 | H51: 0.5945945946 | I51: 0.5995869315 | J51: 0.7021959858 | K51: 5000 | L51: 2050 | M51: 0.07447656683
G52: 45000 | H52: 0.6081081081 | I52: 0.6102080546 | J52: 0.6908756202 | K52: 5000 | L52: 2050 | M52: 0.07401474997
G53: 46000 | H53: 0.6216216216 | I53: 0.6206560477 | J53: 0.6794895391 | K53: 5000 | L53: 2050 | M53: 0.07359401916
G54: 47000 | H54: 0.6351351351 | I54: 0.6309299799 | J54: 0.6680470727 | K54: 5000 | L54: 2050 | M54: 0.07321142976
G55: 48000 | H55: 0.6486486486 | I55: 0.6410290621 | J55: 0.6565574567 | K55: 5000 | L55: 2050 | M55: 0.07286427781
G56: 49000 | H56: 0.6621621622 | I56: 0.650952645 | J56: 0.6450298211 | K56: 5000 | L56: 2050 | M56: 0.07255007565
G57: 50000 | H57: 0.6756756757 | I57: 0.6607002177 | J57: 0.6334731785 | K57: 5000 | L57: 2050 | M57: 0.07226653049
G58: 51000 | H58: 0.6891891892 | I58: 0.6702714059 | J58: 0.6218964131 | K58: 5000 | L58: 2050 | M58: 0.07201152544
G59: 52000 | H59: 0.7027027027 | I59: 0.6796659695 | J59: 0.6103082703 | K59: 5000 | L59: 2050 | M59: 0.07178310279
G60: 53000 | H60: 0.7162162162 | I60: 0.6888838009 | J60: 0.5987173462 | K60: 5000 | L60: 2050 | M60: 0.07157944918
G61: 54000 | H61: 0.7297297297 | I61: 0.6979249221 | J61: 0.5871320785 | K61: 5000 | L61: 2050 | M61: 0.0713988824
G62: 55000 | H62: 0.7432432432 | I62: 0.7067894827 | J62: 0.575560737 | K62: 5000 | L62: 2050 | M62: 0.07123983967
G63: 56000 | H63: 0.7567567568 | I63: 0.7154777569 | J63: 0.5640114147 | K63: 5000 | L63: 2050 | M63: 0.07110086714
G64: 57000 | H64: 0.7702702703 | I64: 0.7239901411 | J64: 0.5524920199 | K64: 5000 | L64: 2050 | M64: 0.07098061051
G65: 58000 | H65: 0.7837837838 | I65: 0.7323271506 | J65: 0.5410102685 | K65: 5000 | L65: 2050 | M65: 0.07087780667
G66: 59000 | H66: 0.7972972973 | I66: 0.740489417 | J66: 0.5295736764 | K66: 5000 | L66: 2050 | M66: 0.07079127614
G67: 60000 | H67: 0.8108108108 | I67: 0.748477685 | J67: 0.5181895532 | K67: 5000 | L67: 2050 | M67: 0.07071991626
G68: 61000 | H68: 0.8243243243 | I68: 0.7562928089 | J68: 0.5068649956 | K68: 5000 | L68: 2050 | M68: 0.07066269513
G69: 62000 | H69: 0.8378378378 | I69: 0.7639357498 | J69: 0.4956068823 | K69: 5000 | L69: 2050 | M69: 0.07061864606
G70: 63000 | H70: 0.8513513514 | I70: 0.7714075719 | J70: 0.4844218682 | K70: 5000 | L70: 2050 | M70: 0.07058686259
G71: 64000 | H71: 0.8648648649 | I71: 0.778709439 | J71: 0.4733163801 | K71: 5000 | L71: 2050 | M71: 0.07056649396
G72: 65000 | H72: =(G72-$D$6)/$D$5 -> 0.8783783784 | I72: =ERF(H72) -> 0.7858426115 | J72: =EXP(-(H72^2)) -> 0.4622966125 | K72: =$D$8/((1+$D$9)^(G72/$D$10)) -> 5000 | L72: =$D$7/((1+$D$9)^(G72/$D$10)) -> 2050 | M72: 0.07055674104 | O72: 65500
G73: =1000+G72 -> 66000 | H73: 0.8918918919 | I73: 0.792808442 | J73: 0.451368524 | K73: 5000 | L73: 2050 | M73: =(J73*L73+(1-J73)*K73)/($D$5*SQRT(PI()/4)*I73) -> 0.0705568526
G74: 67000 | H74: 0.9054054054 | I74: 0.7996083725 | J74: 0.4405378342 | K74: 5000 | L74: 2050 | M74: 0.07056612187
G75: 68000 | H75: 0.9189189189 | I75: 0.8062439302 | J75: 0.429810021 | K75: 5000 | L75: 2050 | M75: 0.07058388355
G76: 69000 | H76: 0.9324324324 | I76: 0.812716724 | J76: 0.4191903187 | K76: 5000 | L76: 2050 | M76: 0.07060951091
G77: 70000 | H77: 0.9459459459 | I77: 0.8190284408 | J77: 0.408683716 | K77: 5000 | L77: 2050 | M77: 0.07064241323
G78: 71000 | H78: 0.9594594595 | I78: 0.8251808417 | J78: 0.3982949553 | K78: 5000 | L78: 2050 | M78: 0.07068203349
G79: 72000 | H79: 0.972972973 | I79: 0.8311757581 | J79: 0.3880285319 | K79: 5000 | L79: 2050 | M79: 0.07072784617
G80: 73000 | H80: 0.9864864865 | I80: 0.8370150882 | J80: 0.3778886936 | K80: 5000 | L80: 2050 | M80: 0.07077935527
G81: 74000 | H81: 1 | I81: 0.8427007929 | J81: 0.3678794412 | K81: 5000 | L81: 2050 | M81: 0.07083609251
G82: 75000 | H82: 1.013513514 | I82: 0.8482348926 | J82: 0.3580045289 | K82: 5000 | L82: 2050 | M82: 0.07089761562
G83: 76000 | H83: 1.027027027 | I83: 0.8536194626 | J83: 0.3482674659 | K83: 5000 | L83: 2050 | M83: 0.07096350686
G84: 77000 | H84: 1.040540541 | I84: 0.8588566302 | J84: 0.3386715174 | K84: 5000 | L84: 2050 | M84: 0.07103337152
G85: 78000 | H85: 1.054054054 | I85: 0.8639485706 | J85: 0.3292197069 | K85: 5000 | L85: 2050 | M85: 0.07110683667
G86: 79000 | H86: 1.067567568 | I86: 0.868897503 | J86: 0.3199148183 | K86: 5000 | L86: 2050 | M86: 0.07118354989
G87: 80000 | H87: 1.081081081 | I87: 0.8737056875 | J87: 0.3107593987 | K87: 5000 | L87: 2050 | M87: 0.07126317818
G88: 81000 | H88: 1.094594595 | I88: 0.8783754213 | J88: 0.3017557612 | K88: 5000 | L88: 2050 | M88: 0.07134540692
G89: 82000 | H89: 1.108108108 | I89: 0.8829090349 | J89: 0.2929059887 | K89: 5000 | L89: 2050 | M89: 0.07142993885
G90: 83000 | H90: 1.121621622 | I90: 0.8873088889 | J90: 0.284211937 | K90: 5000 | L90: 2050 | M90: 0.07151649323
G91: 84000 | H91: 1.135135135 | I91: 0.8915773706 | J91: 0.2756752394 | K91: 5000 | L91: 2050 | M91: 0.07160480494
G92: 85000 | H92: 1.148648649 | I92: 0.8957168904 | J92: 0.2672973104 | K92: 5000 | L92: 2050 | M92: 0.07169462373
G93: 86000 | H93: 1.162162162 | I93: 0.8997298788 | J93: 0.2590793506 | K93: 5000 | L93: 2050 | M93: 0.07178571351
G94: 87000 | H94: 1.175675676 | I94: 0.9036187827 | J94: 0.2510223514 | K94: 5000 | L94: 2050 | M94: 0.07187785158
G95: 88000 | H95: 1.189189189 | I95: 0.9073860629 | J95: 0.2431270999 | K95: 5000 | L95: 2050 | M95: 0.0719708281
G96: 89000 | H96: 1.202702703 | I96: 0.9110341904 | J96: 0.2353941841 | K96: 5000 | L96: 2050 | M96: 0.07206444538
G97: 90000 | H97: 1.216216216 | I97: 0.9145656439 | J97: 0.2278239985 | K97: 5000 | L97: 2050 | M97: 0.07215851738
G98: 91000 | H98: 1.22972973 | I98: 0.9179829066 | J98: 0.2204167496 | K98: 5000 | L98: 2050 | M98: 0.07225286916
G99: 92000 | H99: 1.243243243 | I99: 0.9212884633 | J99: 0.2131724616 | K99: 5000 | L99: 2050 | M99: 0.07234733637
G100: 93000 | H100: 1.256756757 | I100: 0.924484798 | J100: 0.2060909824 | K100: 5000 | L100: 2050 | M100: 0.07244176478
G101: 94000 | H101: 1.27027027 | I101: 0.9275743911 | J101: 0.1991719893 | K101: 5000 | L101: 2050 | M101: 0.07253600983
G102: 95000 | H102: 1.283783784 | I102: 0.9305597167 | J102: 0.1924149957 | K102: 5000 | L102: 2050 | M102: 0.0726299362
G103: 96000 | H103: 1.297297297 | I103: 0.9334432403 | J103: 0.1858193567 | K103: 5000 | L103: 2050 | M103: 0.07272341741
G104: 97000 | H104: 1.310810811 | I104: 0.9362274163 | J104: 0.1793842759 | K104: 5000 | L104: 2050 | M104: 0.07281633544
G105: 98000 | H105: 1.324324324 | I105: 0.9389146862 | J105: 0.1731088112 | K105: 5000 | L105: 2050 | M105: 0.07290858035
G106: 99000 | H106: 1.337837838 | I106: 0.9415074756 | J106: 0.1669918817 | K106: 5000 | L106: 2050 | M106: 0.07300004994
G107: 100000 | H107: 1.351351351 | I107: 0.9440081928 | J107: 0.1610322739 | K107: 5000 | L107: 2050 | M107: 0.07309064943
G108: 101000 | H108: 1.364864865 | I108: 0.9464192269 | J108: 0.1552286482 | K108: 5000 | L108: 2050 | M108: 0.07318029111
G109: 102000 | H109: 1.378378378 | I109: 0.9487429451 | J109: 0.149579545 | K109: 5000 | L109: 2050 | M109: 0.07326889408
G110: 103000 | H110: 1.391891892 | I110: 0.9509816919 | J110: 0.1440833916 | K110: 5000 | L110: 2050 | M110: 0.07335638391
G111: 104000 | H111: 1.405405405 | I111: 0.9531377869 | J111: 0.1387385082 | K111: 5000 | L111: 2050 | M111: 0.07344269238
G112: 105000 | H112: 1.418918919 | I112: 0.9552135232 | J112: 0.1335431145 | K112: 5000 | L112: 2050 | M112: 0.07352775722
G113: 106000 | H113: 1.432432432 | I113: 0.9572111661 | J113: 0.1284953357 | K113: 5000 | L113: 2050 | M113: 0.07361152184
G114: 107000 | H114: 1.445945946 | I114: 0.9591329516 | J114: 0.123593209 | K114: 5000 | L114: 2050 | M114: 0.07369393508
G115: 108000 | H115: 1.459459459 | I115: 0.9609810853 | J115: 0.1188346897 | K115: 5000 | L115: 2050 | M115: 0.07377495096
G116: 109000 | H116: 1.472972973 | I116: 0.9627577407 | J116: 0.114217657 | K116: 5000 | L116: 2050 | M116: 0.07385452845
G117: 110000 | H117: 1.486486486 | I117: 0.9644650588 | J117: 0.1097399202 | K117: 5000 | L117: 2050 | M117: 0.07393263127
G118: 111000 | H118: 1.5 | I118: 0.9661051465 | J118: 0.1053992246 | K118: 5000 | L118: 2050 | M118: 0.07400922764
G119: 112000 | H119: 1.513513514 | I119: 0.9676800758 | J119: 0.1011932569 | K119: 5000 | L119: 2050 | M119: 0.07408429006
G120: 113000 | H120: 1.527027027 | I120: 0.9691918831 | J120: 0.09711965138 | K120: 5000 | L120: 2050 | M120: 0.07415779514
G121: 114000 | H121: 1.540540541 | I121: 0.9706425685 | J121: 0.09317599479 | K121: 5000 | L121: 2050 | M121: 0.0742297234
G122: 115000 | H122: 1.554054054 | I122: 0.9720340947 | J122: 0.08935983212 | K122: 5000 | L122: 2050 | M122: 0.07430005903
G123: 116000 | H123: 1.567567568 | I123: 0.9733683869 | J123: 0.08566867162 | K123: 5000 | L123: 2050 | M123: 0.07436878975
G124: 117000 | H124: 1.581081081 | I124: 0.9746473319 | J124: 0.08209998995 | K124: 5000 | L124: 2050 | M124: 0.07443590662
G125: 118000 | H125: 1.594594595 | I125: 0.975872778 | J125: 0.07865123705 | K125: 5000 | L125: 2050 | M125: 0.07450140386
G126: 119000 | H126: 1.608108108 | I126: 0.9770465343 | J126: 0.07531984091 | K126: 5000 | L126: 2050 | M126: 0.07456527865
G127: 120000 | H127: 1.621621622 | I127: 0.9781703706 | J127: 0.0721032122 | K127: 5000 | L127: 2050 | M127: 0.07462753102
G128: 121000 | H128: 1.635135135 | I128: 0.9792460169 | J128: 0.06899874864 | K128: 5000 | L128: 2050 | M128: 0.07468816366
G129: 122000 | H129: 1.648648649 | I129: 0.9802751639 | J129: 0.06600383935 | K129: 5000 | L129: 2050 | M129: 0.07474718174
G130: 123000 | H130: 1.662162162 | I130: 0.981259462 | J130: 0.06311586888 | K130: 5000 | L130: 2050 | M130: 0.0748045928
G131: 124000 | H131: 1.675675676 | I131: 0.982200522 | J131: 0.06033222118 | K131: 5000 | L131: 2050 | M131: 0.07486040659
G132: 125000 | H132: 1.689189189 | I132: 0.9830999147 | J132: 0.05765028337 | K132: 5000 | L132: 2050 | M132: 0.07491463491
G133: 126000 | H133: 1.702702703 | I133: 0.9839591711 | J133: 0.05506744932 | K133: 5000 | L133: 2050 | M133: 0.07496729149
G134: 127000 | H134: 1.716216216 | I134: 0.9847797826 | J134: 0.05258112306 | K134: 5000 | L134: 2050 | M134: 0.07501839186
G135: 128000 | H135: 1.72972973 | I135: 0.9855632011 | J135: 0.05018872205 | K135: 5000 | L135: 2050 | M135: 0.07506795319
G136: 129000 | H136: =(G136-$D$6)/$D$5 -> 1.743243243 | I136: =ERF(H136) -> 0.9863108391 | J136: =EXP(-(H136^2)) -> 0.04788768024 | K136: =$D$8/((1+$D$9)^(G136/$D$10)) -> 5000 | L136: =$D$7/((1+$D$9)^(G136/$D$10)) -> 2050 | M136: 0.07511599421
G137: =1000+G136 -> 130000 | H137: 1.756756757 | I137: 0.9870240703 | J137: 0.04567545101 | K137: 5000 | L137: 2050 | M137: =(J137*L137+(1-J137)*K137)/($D$5*SQRT(PI()/4)*I137) -> 0.07516253505
G138: 131000 | H138: 1.77027027 | I138: 0.9877042298 | J138: 0.04354950989 | K138: 5000 | L138: 2050 | M138: 0.07520759715
G139: 132000 | H139: 1.783783784 | I139: 0.988352614 | J139: 0.04150735713 | K139: 5000 | L139: 2050 | M139: 0.07525120313
G140: 133000 | H140: 1.797297297 | I140: 0.9889704819 | J140: 0.03954652014 | K140: 5000 | L140: 2050 | M140: 0.0752933767
G141: 134000 | H141: 1.810810811 | I141: 0.9895590546 | J141: 0.03766455575 | K141: 5000 | L141: 2050 | M141: 0.07533414251
G142: 135000 | H142: 1.824324324 | I142: 0.9901195165 | J142: 0.03585905225 | K142: 5000 | L142: 2050 | M142: 0.07537352612
G143: 136000 | H143: 1.837837838 | I143: 0.9906530152 | J143: 0.03412763139 | K143: 5000 | L143: 2050 | M143: 0.07541155384
G144: 137000 | H144: 1.851351351 | I144: 0.9911606624 | J144: 0.03246795013 | K144: 5000 | L144: 2050 | M144: 0.07544825268
G145: 138000 | H145: 1.864864865 | I145: 0.9916435345 | J145: 0.03087770229 | K145: 5000 | L145: 2050 | M145: 0.07548365024
G146: 139000 | H146: 1.878378378 | I146: 0.9921026729 | J146: 0.02935462006 | K146: 5000 | L146: 2050 | M146: 0.07551777461
G147: 140000 | H147: 1.891891892 | I147: 0.9925390846 | J147: 0.02789647532 | K147: 5000 | L147: 2050 | M147: 0.07555065435
G148: 141000 | H148: 1.905405405 | I148: 0.9929537432 | J148: 0.02650108088 | K148: 5000 | L148: 2050 | M148: 0.07558231832
G149: 142000 | H149: 1.918918919 | I149: 0.9933475891 | J149: 0.02516629154 | K149: 5000 | L149: 2050 | M149: 0.07561279569
G150: 143000 | H150: 1.932432432 | I150: 0.9937215303 | J150: 0.02389000506 | K150: 5000 | L150: 2050 | M150: 0.07564211582
G151: 144000 | H151: 1.945945946 | I151: 0.9940764431 | J151: 0.022670163 | K151: 5000 | L151: 2050 | M151: 0.07567030823
G152: 145000 | H152: 1.959459459 | I152: 0.9944131729 | J152: 0.02150475139 | K152: 5000 | L152: 2050 | M152: 0.0756974025
G153: 146000 | H153: 1.972972973 | I153: 0.9947325344 | J153: 0.02039180138 | K153: 5000 | L153: 2050 | M153: 0.07572342823
G154: 147000 | H154: 1.986486486 | I154: 0.9950353131 | J154: 0.01932938966 | K154: 5000 | L154: 2050 | M154: 0.07574841497
G155: 148000 | H155: 2 | I155: 0.995322265 | J155: 0.01831563889 | K155: 5000 | L155: 2050 | M155: 0.07577239221
G156: 149000 | H156: 2.013513514 | I156: 0.9955941183 | J156: 0.01734871794 | K156: 5000 | L156: 2050 | M156: 0.07579538926
G157: 150000 | H157: 2.027027027 | I157: 0.9958515732 | J157: 0.01642684211 | K157: 5000 | L157: 2050 | M157: 0.07581743526
G158: 151000 | H158: 2.040540541 | I158: 0.9960953034 | J158: 0.01554827316 | K158: 5000 | L158: 2050 | M158: 0.07583855914
G159: 152000 | H159: 2.054054054 | I159: 0.9963259563 | J159: 0.01471131936 | K159: 5000 | L159: 2050 | M159: 0.07585878951
G160: 153000 | H160: 2.067567568 | I160: 0.9965441538 | J160: 0.0139143354 | K160: 5000 | L160: 2050 | M160: 0.07587815471
G161: 154000 | H161: 2.081081081 | I161: 0.9967504931 | J161: 0.01315572221 | K161: 5000 | L161: 2050 | M161: 0.07589668273
G162: 155000 | H162: 2.094594595 | I162: 0.9969455475 | J162: 0.01243392673 | K162: 5000 | L162: 2050 | M162: 0.07591440117
G163: 156000 | H163: 2.108108108 | I163: 0.9971298667 | J163: 0.01174744163 | K163: 5000 | L163: 2050 | M163: 0.07593133723
G164: 157000 | H164: 2.121621622 | I164: 0.9973039781 | J164: 0.01109480492 | K164: 5000 | L164: 2050 | M164: 0.07594751769
G165: 158000 | H165: 2.135135135 | I165: 0.9974683869 | J165: 0.01047459953 | K165: 5000 | L165: 2050 | M165: 0.07596296887
G166: 159000 | H166: 2.148648649 | I166: 0.997623577 | J166: 0.009885452813 | K166: 5000 | L166: 2050 | M166: 0.07597771662
G167: 160000 | H167: 2.162162162 | I167: 0.997770012 | J167: 0.009326036046 | K167: 5000 | L167: 2050 | M167: 0.07599178626
G168: 161000 | H168: 2.175675676 | I168: 0.9979081352 | J168: 0.008795063809 | K168: 5000 | L168: 2050 | M168: 0.07600520265
G169: 162000 | H169: 2.189189189 | I169: 0.998038371 | J169: 0.008291293372 | K169: 5000 | L169: 2050 | M169: 0.07601799009
G170: 163000 | H170: 2.202702703 | I170: 0.9981611248 | J170: 0.007813524031 | K170: 5000 | L170: 2050 | M170: 0.07603017234
G171: 164000 | H171: 2.216216216 | I171: 0.9982767842 | J171: 0.007360596399 | K171: 5000 | L171: 2050 | M171: 0.07604177262
G172: 165000 | H172: 2.22972973 | I172: 0.9983857195 | J172: 0.006931391671 | K172: 5000 | L172: 2050 | M172: 0.0760528136
G173: 166000 | H173: 2.243243243 | I173: 0.9984882841 | J173: 0.006524830857 | K173: 5000 | L173: 2050 | M173: 0.07606331734
G174: 167000 | H174: 2.256756757 | I174: 0.9985848153 | J174: 0.006139873994 | K174: 5000 | L174: 2050 | M174: 0.07607330539
G175: 168000 | H175: 2.27027027 | I175: 0.9986756349 | J175: 0.005775519326 | K175: 5000 | L175: 2050 | M175: 0.07608279866
G176: 169000 | H176: 2.283783784 | I176: 0.9987610496 | J176: 0.005430802472 | K176: 5000 | L176: 2050 | M176: 0.07609181754
G177: 170000 | H177: 2.297297297 | I177: 0.9988413517 | J177: 0.005104795575 | K177: 5000 | L177: 2050 | M177: 0.07610038179
G178: 171000 | H178: 2.310810811 | I178: 0.9989168198 | J178: 0.004796606437 | K178: 5000 | L178: 2050 | M178: 0.07610851062
G179: 172000 | H179: 2.324324324 | I179: 0.9989877188 | J179: 0.00450537764 | K179: 5000 | L179: 2050 | M179: 0.07611622266
G180: 173000 | H180: 2.337837838 | I180: 0.9990543011 | J180: 0.004230285661 | K180: 5000 | L180: 2050 | M180: 0.07612353596
G181: 174000 | H181: 2.351351351 | I181: 0.9991168067 | J181: 0.003970539984 | K181: 5000 | L181: 2050 | M181: 0.07613046799
G182: 175000 | H182: 2.364864865 | I182: 0.9991754637 | J182: 0.003725382197 | K182: 5000 | L182: 2050 | M182: 0.07613703568
G183: 176000 | H183: 2.378378378 | I183: 0.9992304891 | J183: 0.003494085103 | K183: 5000 | L183: 2050 | M183: 0.07614325536
G184: 177000 | H184: 2.391891892 | I184: 0.9992820888 | J184: 0.003275951812 | K184: 5000 | L184: 2050 | M184: 0.07614914283
G185: 178000 | H185: 2.405405405 | I185: 0.9993304584 | J185: 0.003070314854 | K185: 5000 | L185: 2050 | M185: 0.07615471336
G186: 179000 | H186: 2.418918919 | I186: 0.9993757837 | J186: 0.002876535282 | K186: 5000 | L186: 2050 | M186: 0.07615998165
G187: 180000 | H187: 2.432432432 | I187: 0.9994182405 | J187: 0.002694001785 | K187: 5000 | L187: 2050 | M187: 0.07616496187
G188: 181000 | H188: 2.445945946 | I188: 0.9994579961 | J188: 0.002522129813 | K188: 5000 | L188: 2050 | M188: 0.07616966771
G189: 182000 | H189: 2.459459459 | I189: 0.9994952086 | J189: 0.0023603607 | K189: 5000 | L189: 2050 | M189: 0.07617411229
G190: 183000 | H190: 2.472972973 | I190: 0.999530028 | J190: 0.002208160805 | K190: 5000 | L190: 2050 | M190: 0.07617830829
G191: 184000 | H191: 2.486486486 | I191: 0.9995625963 | J191: 0.002065020661 | K191: 5000 | L191: 2050 | M191: 0.07618226785
G192: 185000 | H192: 2.5 | I192: 0.999593048 | J192: 0.001930454136 | K192: 5000 | L192: 2050 | M192: 0.07618600266
G193: 186000 | H193: 2.513513514 | I193: 0.9996215101 | J193: 0.001803997609 | K193: 5000 | L193: 2050 | M193: 0.07618952393
G194: 187000 | H194: 2.527027027 | I194: 0.999648103 | J194: 0.001685209155 | K194: 5000 | L194: 2050 | M194: 0.07619284242
G195: 188000 | H195: 2.540540541 | I195: 0.9996729403 | J195: 0.001573667749 | K195: 5000 | L195: 2050 | M195: 0.07619596845
G196: 189000 | H196: 2.554054054 | I196: 0.9996961295 | J196: 0.001468972487 | K196: 5000 | L196: 2050 | M196: 0.07619891189
G197: 190000 | H197: 2.567567568 | I197: 0.999717772 | J197: 0.001370741816 | K197: 5000 | L197: 2050 | M197: 0.07620168222
G198: 191000 | H198: 2.581081081 | I198: 0.9997379637 | J198: 0.001278612789 | K198: 5000 | L198: 2050 | M198: 0.07620428847
G199: 192000 | H199: 2.594594595 | I199: 0.9997567948 | J199: 0.001192240331 | K199: 5000 | L199: 2050 | M199: 0.07620673932
G200: 193000 | H200: =(G200-$D$6)/$D$5 -> 2.608108108 | I200: =ERF(H200) -> 0.9997743507 | J200: =EXP(-(H200^2)) -> 0.001111296526 | K200: =$D$8/((1+$D$9)^(G200/$D$10)) -> 5000 | L200: =$D$7/((1+$D$9)^(G200/$D$10)) -> 2050 | M200: 0.07620904303
G201: =1000+G200 -> 194000 | H201: 2.621621622 | I201: 0.9997907117 | J201: 0.001035469919 | K201: 5000 | L201: 2050 | M201: =(J201*L201+(1-J201)*K201)/($D$5*SQRT(PI()/4)*I201) -> 0.07621120751
G202: 195000 | H202: 2.635135135 | I202: 0.9998059537 | J202: 0.00096446484 | K202: 5000 | L202: 2050 | M202: 0.0762132403
... 378 more rows

Sheet Avail 10
A2: T | B2: 200000 | C2: miles
A3: Beta | B3: 2
A4: Eta | B4: 74000 | C4: miles
A5: CM Maint time | B5: 2740 | C5: miles
A6: PM | B6: 65500 | C6: miles
A7: PM Maint time | B7: 550 | C7: miles
A9: Average number of CMs | B9: 1.917 | C9: per year
A10: Average number of PMs | B10: 1.4421 | C10: per year | D10: CM cost | E10: 5000
A11: Average Downtime (miles) | B11: 6045.735 | C11: per year | D11: PM cost | E11: 2050
A12: Availability | B12: =(B2-B11)/B2 -> 0.969771325
D13: Maint Cost | E13: =B9*E10+B10*E11 -> 12541.305 | F13: per year
A24: Support life (running start) | B24: 1 | C24: years
A33: Monte Carlo samples | B33: 10000
A34: Monte Carlo on | B34: Yes

Sheet Avail 11
C3: To create the PDF plot use the model in "Bus 1"
D5: Set the following data on the "Bus 1" sheet:
D6: Shape | E6: 0.76 | F6: C5
D7: Scale | E7: 100000 | F7: C6
C9: Calculating M(t)
D11: t | E11: 200000 | F11: miles
D12: Scale (Beta) | E12: 0.76
D13: Shape (Eta) | E13: 100000 | F13: miles
D14: Location (gamma) | E14: 0 | F14: miles
D15: mean | E15: =E14+E13*_xlfn.GAMMA(1+1/E12) -> 117789.7665 | F15: miles
D16: variance | E16: =E13*E13*(_xlfn.GAMMA(1+2/E12)-_xlfn.GAMMA(1+1/E12)*_xlfn.GAMMA(1+1/E12)) -> 2.465916382e+10 | F16: miles^2
D18: M(t) | E18: =E11/E15+E16/2/E15/E15-0.5 -> 2.086595453

Sheet Obs 1
C1: Alpha | D1: 2 | F1: CO | G1: 0.2 | H1: Start | I1: 0
C2: Beta | D2: 5 | F2: CU | G2: 0.8 | H2: End | I2: 40
C3: Q | D3: 10 | F3: step | G3: 1 | H3: (demand step)
B4: Demand (D) | C4: pdf (this is f(x)) | D4: Overstock Quantity (Q-D) | E4: Overstock Cost | F4: Expected CO | G4: Understock Quantity (D-Q) | H4: Understock Cost | I4: Expected CU | K4: F(x) | L4: Real cdf
B5: 0 | C5: 0 | D5: =IF($D$3>=B5,$D$3-B5,"") -> 10 | E5: =IF($D$3>=B5,D5*$G$1,"") -> 2 | F5: =IF($D$3>=B5,C5*E5,"") -> 0 | G5: =IF(B5>=$D$3,B5-$D$3,"") ->  | H5: =IF(B5>=$D$3,G5*$G$2,"") ->  | I5: =IF(B5>=$D$3,C5*H5,"") ->  | K5: =C5*$G$3 -> 0 | L5: =_xlfn.BETA.DIST(B5,$D$1,$D$2,TRUE,$I$1,$I$2) -> 0
B6: =$G$3+B5 -> 1 | C6: =_xlfn.BETA.DIST(B6,$D$1,$D$2,FALSE,$I$1,$I$2) -> 0.01694414795 | D6: =IF($D$3>=B6,$D$3-B6,"") -> 9 | E6: =IF($D$3>=B6,D6*$G$1,"") -> 1.8 | F6: =IF($D$3>=B6,C6*E6,"") -> 0.03049946631 | G6: =IF(B6>=$D$3,B6-$D$3,"") ->  | H6: =IF(B6>=$D$3,G6*$G$2,"") ->  | I6: =IF(B6>=$D$3,C6*H6,"") ->  | K6: =C6*$G$3+K5 -> 0.01694414795 | L6: =_xlfn.BETA.DIST(B6,$D$1,$D$2,TRUE,$I$1,$I$2) -> 0.008767344971
B7: =$G$3+B6 -> 2 | C7: 0.03054398437 | D7: 8 | E7: 1.6 | F7: 0.048870375 | K7: =C7*$G$3+K6 -> 0.04748813232 | L7: 0.03277382813
B8: 3 | C8: 0.04118029541 | D8: 7 | E8: 1.4 | F8: 0.05765241357 | K8: 0.08866842773 | L8: 0.06886776489
B9: 4 | C9: 0.0492075 | D9: 6 | E9: 1.2 | F9: 0.059049 | K9: 0.1378759277 | L9: 0.114265
B10: 5 | C10: 0.05495452881 | D10: 5 | E10: 1 | F10: 0.05495452881 | K10: 0.1928304565 | L10: 0.1665229797
B11: 6 | C11: 0.05872570312 | D11: 4 | E11: 0.8 | F11: 0.0469805625 | K11: 0.2515561597 | L11: 0.2235157031
B12: 7 | C12: 0.06080161377 | D12: 3 | E12: 0.6 | F12: 0.03648096826 | K12: 0.3123577734 | L12: 0.283409552
B13: 8 | C13: 0.06144 | D13: 2 | E13: 0.4 | F13: 0.024576 | K13: 0.3737977734 | L13: 0.34464
B14: 9 | C14: 0.06087662842 | D14: 1 | E14: 0.2 | F14: 0.01217532568 | K14: 0.4346744019 | L14: 0.4058892004
B15: 10 | C15: 0.05932617188 | D15: 0 | E15: 0 | F15: 0 | G15: 0 | H15: 0 | I15: 0 | K15: 0.4940005737 | L15: 0.4660644531
B16: 11 | C16: 0.05698308838 | G16: 1 | H16: 0.8 | I16: 0.0455864707 | K16: 0.5509836621 | L16: 0.52427755
B17: 12 | C17: 0.0540225 | G17: 2 | H17: 1.6 | I17: 0.086436 | K17: 0.6050061621 | L17: 0.579825
B18: 13 | C18: 0.05060107178 | G18: 3 | H18: 2.4 | I18: 0.1214425723 | K18: 0.6556072339 | L18: 0.6321691321
B19: 14 | C19: 0.04685789063 | G19: 4 | H19: 3.2 | I19: 0.14994525 | K19: 0.7024651245 | L19: 0.6809200781
B20: 15 | C20: 0.04291534424 | G20: 5 | H20: 4 | I20: 0.171661377 | K20: 0.7453804687 | L20: 0.725818634
B21: 16 | C21: 0.03888 | G21: 6 | H21: 4.8 | I21: 0.186624 | K21: 0.7842604687 | L21: 0.76672
B22: 17 | C22: 0.03484348389 | G22: 7 | H22: 5.6 | I22: 0.1951235098 | K22: 0.8191039526 | L22: 0.8035783997
B23: 18 | C23: 0.03088335937 | G23: 8 | H23: 6.4 | I23: 0.1976535 | K23: 0.849987312 | L23: 0.8364325781
B24: 19 | C24: 0.02706400635 | G24: 9 | H24: 7.2 | I24: 0.1948608457 | K24: 0.8770513184 | L24: 0.865392179
B25: 20 | C25: 0.0234375 | G25: 10 | H25: 8 | I25: 0.1875 | K25: 0.9004888184 | L25: 0.890625
B26: 21 | C26: 0.02004448975 | G26: 11 | H26: 8.8 | I26: 0.1763915098 | K26: 0.9205333081 | L26: 0.9123451282
B27: 22 | C27: 0.01691507813 | G27: 12 | H27: 9.6 | I27: 0.16238475 | K27: 0.9374483862 | L27: 0.9308019531
B28: 23 | C28: 0.01406969971 | G28: 13 | H28: 10.4 | I28: 0.146324877 | K28: 0.9515180859 | L28: 0.9462700598
B29: 24 | C29: 0.01152 | G29: 14 | H29: 11.2 | I29: 0.129024 | K29: 0.9630380859 | L29: 0.95904
B30: 25 | C30: 0.009269714355 | G30: 15 | H30: 12 | I30: 0.1112365723 | K30: 0.9723078003 | L30: 0.9694099426
B31: 26 | C31: 0.007315546875 | G31: 16 | H31: 12.8 | I31: 0.093639 | K31: 0.9796233472 | L31: 0.9776782031
B32: 27 | C32: 0.005648049316 | G32: 17 | H32: 13.6 | I32: 0.0768134707 | K32: 0.9852713965 | L32: 0.9841366516
B33: 28 | C33: 0.0042525 | G33: 18 | H33: 14.4 | I33: 0.061236 | K33: 0.9895238965 | L33: 0.989065
B34: 29 | C34: 0.003109782715 | G34: 19 | H34: 15.2 | I34: 0.04726869727 | K34: 0.9926336792 | L34: 0.992725968
B35: 30 | C35: 0.002197265625 | G35: 20 | H35: 16 | I35: 0.03515625 | K35: 0.9948309448 | L35: 0.9953613281
B36: 31 | C36: 0.001489680176 | G36: 21 | H36: 16.8 | I36: 0.02502662695 | K36: 0.996320625 | L36: 0.9971888293
B37: 32 | C37: 0.00096 | G37: 22 | H37: 17.6 | I37: 0.016896 | K37: 0.997280625 | L37: 0.9984
B38: 33 | C38: 0.0005803198242 | G38: 23 | H38: 18.4 | I38: 0.01067788477 | K38: 0.9978609448 | L38: 0.9991588293
B39: 34 | C39: 0.000322734375 | G39: 24 | H39: 19.2 | I39: 0.0061965 | K39: 0.9981836792 | L39: 0.9996013281
B40: 35 | C40: 0.0001602172852 | G40: 25 | H40: 20 | I40: 0.003204345703 | K40: 0.9983438965 | L40: 0.999835968
B41: 36 | C41: 6.75e-05 | G41: 26 | H41: 20.8 | I41: 0.001404 | K41: 0.9984113965 | L41: 0.999945
B42: 37 | C42: 2.195068359e-05 | G42: 27 | H42: 21.6 | I42: 0.0004741347656 | K42: 0.9984333472 | L42: 0.9999866516
B43: 38 | C43: 4.453125e-06 | G43: 28 | H43: 22.4 | I43: 9.975e-05 | K43: 0.9984378003 | L43: 0.9999982031
B44: 39 | C44: =_xlfn.BETA.DIST(B44,$D$1,$D$2,FALSE,$I$1,$I$2) -> 2.856445313e-07 | D44: =IF($D$3>=B44,$D$3-B44,"") ->  | E44: =IF($D$3>=B44,D44*$G$1,"") ->  | F44: =IF($D$3>=B44,C44*E44,"") ->  | G44: =IF(B44>=$D$3,B44-$D$3,"") -> 29 | H44: =IF(B44>=$D$3,G44*$G$2,"") -> 23.2 | I44: =IF(B44>=$D$3,C44*H44,"") -> 6.626953125e-06 | K44: =C44*$G$3+K43 -> 0.9984380859 | L44: =_xlfn.BETA.DIST(B44,$D$1,$D$2,TRUE,$I$1,$I$2) -> 0.9999999426
B45: 40 | C45: =_xlfn.BETA.DIST(B45,$D$1,$D$2,FALSE,$I$1,$I$2) -> 0 | D45: =IF($D$3>=B45,$D$3-B45,"") ->  | E45: =IF($D$3>=B45,D45*$G$1,"") ->  | F45: =IF($D$3>=B45,C45*E45,"") ->  | G45: =IF(B45>=$D$3,B45-$D$3,"") -> 30 | H45: =IF(B45>=$D$3,G45*$G$2,"") -> 24 | I45: =IF(B45>=$D$3,C45*H45,"") -> 0 | K45: =C45*$G$3+K44 -> 0.9984380859 | L45: =_xlfn.BETA.DIST(B45,$D$1,$D$2,TRUE,$I$1,$I$2) -> 1
F46: =SUM(F5:F45) -> 0.3712386401 | I46: =SUM(I5:I45) -> 2.640294521
E48: Total loss | F48: =F46+I46 -> 3.011533162

Sheet Obs 2
C3: Today's cost | D3: 2000
C4: Future cost | D4: 20000
C6: CU | D6: =D4-D3 -> 18000
C7: CO | D7: =D3 -> 2000
C9: F(Qopt) | D9: =D6/(D7+D6) -> 0.9
C12: To determine the number corresponding to F(Qopt), use "DES 3" with:
D14: Vary the Level (I33) until the Confidence (I34) is greater than F(Qopt)
D15: (note everytime the analysis is rerun, the Monte Carlo gives slightly different answers)

Sheet Obs 3
C2: Redesign cost (year 0) | D2: 100000
C3: Inflation rate (%) | D3: 0
C4: Discount rate (%) | D4: 9
C5: Number of obs parts needed per year | D5: 500 | E5: assumed constant
C6: Obs part price at lifetime buy | D6: 10
C8: Years until redesign (YR) | D8: Q needed | E8: Cum Q | F8: CLTB | G8: CDR | H8: Ctotal
C9: 0 | D9: =$D$5 -> 500 | E9: 0 | F9: =POWER(1+$D$3/100,C9)*$D$6*E9 -> 0 | G9: =POWER(1+$D$3/100,C9)*$D$2/POWER(1+$D$4/100,C9) -> 100000 | H9: =F9+G9 -> 100000
C10: =C9+1 -> 1 | D10: =$D$5 -> 500 | E10: =E9+D9 -> 500 | F10: =POWER(1+$D$3/100,C10)*$D$6*E10 -> 5000 | G10: =POWER(1+$D$3/100,C10)*$D$2/POWER(1+$D$4/100,C10) -> 91743.11927 | H10: =F10+G10 -> 96743.11927
C11: =C10+1 -> 2 | D11: 500 | E11: =E10+D10 -> 1000 | F11: 10000 | G11: 84167.99933 | H11: 94167.99933
C12: 3 | D12: 500 | E12: 1500 | F12: 15000 | G12: 77218.34801 | H12: 92218.34801
C13: 4 | D13: 500 | E13: 2000 | F13: 20000 | G13: 70842.52111 | H13: 90842.52111
C14: 5 | D14: 500 | E14: 2500 | F14: 25000 | G14: 64993.13863 | H14: 89993.13863
C15: 6 | D15: 500 | E15: 3000 | F15: 30000 | G15: 59626.73269 | H15: 89626.73269
C16: 7 | D16: 500 | E16: 3500 | F16: 35000 | G16: 54703.42448 | H16: 89703.42448
C17: 8 | D17: 500 | E17: 4000 | F17: 40000 | G17: 50186.62797 | H17: 90186.62797
C18: 9 | D18: 500 | E18: 4500 | F18: 45000 | G18: 46042.77795 | H18: 91042.77795
C19: 10 | D19: 500 | E19: 5000 | F19: 50000 | G19: 42241.08069 | H19: 92241.08069
C20: 11 | D20: 500 | E20: 5500 | F20: 55000 | G20: 38753.28504 | H20: 93753.28504
C21: 12 | D21: 500 | E21: 6000 | F21: 60000 | G21: 35553.47251 | H21: 95553.47251
C22: 13 | D22: 500 | E22: 6500 | F22: 65000 | G22: 32617.86469 | H22: 97617.86469
C23: 14 | D23: 500 | E23: 7000 | F23: 70000 | G23: 29924.6465 | H23: 99924.6465
C24: 15 | D24: 500 | E24: 7500 | F24: 75000 | G24: 27453.80413 | H24: 102453.8041
C25: 16 | D25: 500 | E25: 8000 | F25: 80000 | G25: 25186.97627 | H25: 105186.9763
C26: 17 | D26: 500 | E26: 8500 | F26: 85000 | G26: 23107.31768 | H26: 108107.3177
C27: 18 | D27: 500 | E27: 9000 | F27: 90000 | G27: 21199.37402 | H27: 111199.374
C28: =C27+1 -> 19 | D28: 500 | E28: 9500 | F28: 95000 | G28: 19448.96699 | H28: 114448.967
C29: =C28+1 -> 20 | D29: 0 | E29: 10000 | F29: 100000 | G29: 17843.08898 | H29: 117843.089
C30: 21 | D30: 0 | E30: =E29+D29 -> 10000 | F30: 100000 | G30: 16369.8064 | H30: 116369.8064

Sheet ROI 1
C3: Machine A | D3: Machine B
B4: Non-Rec Cost | C4: 0 | D4: 100000 | G4: Volume | H4: 2500000 | I4: in life of machines
B5: Rec Cost (per unit) | C5: 0.5 | D5: 0.4 | G5: Invest in product | H5: 1.35
B6: Yield | C6: 0.95 | D6: 0.97
M8: Breakeven | N8: =D4/((C5-D5)+D6*(H5+D5)-C6*(H5+C5)) -> 2500000
G9: Investment | H9: =D4 -> 100000
G10: Return(Cost) | H10: =(C5-D5) -> 0.1 | I10: per unit
G11: Return (Yield) | H11: =D6*(H5+D5)-C6*(H5+C5) -> -0.06 | I11: =D6*D5-C6*C5 -> -0.087
G13: ROI | H13: =((H10+H11)*H4-H9)/H9 -> -1.89174898e-15
B17: Volume | C17: ROI
B18: 1 | C18: =(($H$10+$H$11)*B18-$H$9)/$H$9 -> -0.9999996
B19: 10 | C19: =(($H$10+$H$11)*B19-$H$9)/$H$9 -> -0.999996
B20: 100 | C20: -0.99996
B21: 1000 | C21: -0.9996
B22: 5000 | C22: -0.998
B23: 10000 | C23: -0.996
B24: 50000 | C24: -0.98
B25: 100000 | C25: -0.96
B26: 500000 | C26: -0.8
B27: 1000000 | C27: -0.6
B28: 2500000 | C28: -1.89174898e-15
B29: 5000000 | C29: 1
B30: 7500000 | C30: 2
B31: 10000000 | C31: 3
B32: 30000000 | C32: 11

Sheet ROI 2
L2: end of year
B3: Investments: | D3: Cost | K3: Year | L3: 0 | M3: =L3+1 -> 1 | N3: =M3+1 -> 2 | O3: =N3+1 -> 3 | P3: 4 | Q3: 5 | R3: 6 | S3: 7 | T3: 8 | U3: 9 | V3: 10 | W3: 11 | X3: 12
B4: License | D4: 5000000 | J4: License | L4: =D4 -> 5000000
B5: Additional Staff | C5: 10 | D5: =C5*C6*C7 -> 1950000 | E5: Assumes these folks are hired and on payrole from the first day | J5: Additional Staff | M5: =(1-M29)*$C$5*$C$6*M23 -> 1214953.271 | N5: =(1-N29)*$C$5*$C$6*N23 -> 567735.1734 | O5: 0 | P5: 0 | Q5: 0 | R5: 0 | S5: 0 | T5: 0 | U5: 0 | V5: 0 | W5: 0 | X5: 0
B6: Staff burdened cost per year | C6: 130000
B7: Years to production | C7: 1.5 | E7: Includes process develop., characterization, qualification
B8: New equipment | D8: 1200000
B9: Depreciation years | C9: 5 | J9: New equipment | M9: =IF($C$9>=M3,$D$8/$C$9,0)*M23 -> 224299.0654 | N9: 209625.2948 | O9: 195911.4905 | P9: 183094.8509 | Q9: 171116.6831 | R9: 0 | S9: 0 | T9: 0 | U9: 0 | V9: 0 | W9: 0 | X9: 0
B10: Training process engineers | C10: 25 | D10: =C10*80000/25 -> 80000 | J10: Training process engineers | M10: =D10*M23 -> 74766.35514
B11: ISO process certification | D11: 50000 | J11: ISO process certification | M11: =D11*M23 -> 46728.97196
B12: New design software (software purchase) | D12: 200000 | J12: New design software (software purchase) | L12: =D12 -> 200000
B13: Redesign lead frames | C13: 5000 | D13: =C13*C14 -> 250000 | E13: cost per leadframe/total cost | J13: Redesign lead frames | M13: =D13*M23 -> 233644.8598
B14: Number of chips effected | C14: 50
B15: Redesign die | C15: 10000 | D15: =C15*C14 -> 500000 | E15: cost per die/total cost | J15: Redesign die | M15: =D15*M23 -> 467289.7196
B16: Discount rate | C16: 0.07
B18: Total investment | D18: =SUM(D4:D16) -> 9230000 | J18: Cumm Investment | L18: =SUM(L4:L17) -> 5200000 | M18: =SUM(M4:M17)+L18 -> 7461682.243 | N18: =SUM(N4:N17)+M18 -> 8239042.711 | O18: 8434954.202 | P18: 8618049.052 | Q18: 8789165.736 | R18: 8789165.736 | S18: 8789165.736 | T18: 8789165.736 | U18: 8789165.736 | V18: 8789165.736 | W18: 8789165.736 | X18: 8789165.736
B22: Return:
B23: Average die shrink (%) | C23: 0.07 | J23: Cost of Money Mult | L23: =1/POWER(1+$C$16,L3) -> 1 | M23: =1/POWER(1+$C$16,M3) -> 0.9345794393 | N23: 0.8734387283 | O23: 0.8162978769 | P23: 0.762895212 | Q23: 0.7129861795 | R23: 0.6663422238 | S23: 0.6227497419 | T23: 0.5820091046 | U23: 0.5439337426 | V23: 0.5083492921 | W23: 0.4750927964 | X23: 0.4440119592
B24: Average cost of chips | C24: 9
B25: Average profit on chips ($/chip) | C25: =0.35*C24 -> 3.15
B26: Average sales volume per chip per year | C26: 500000 | E26: quantity
B27: Additional profit (per year) | D27: =C23*C25*C26*C14 -> 5512500
B28: Market share increase (%) - obtained once | C28: 0.035 | D28: =C25*C26*C28*C14 -> 2756250 | E28: due to perf increase | L28: end of year
B29: Total return (per year) | D29: =SUM(D27:D28) -> 8268750 | E29: in year 0 dollars after production begins | J29: Years of return | L29: =IF($C$7>L3,0,MIN(L3-$C$7,1)) -> 0 | M29: =IF($C$7>M3,0,MIN(M3-$C$7,1)) -> 0 | N29: =IF($C$7>N3,0,MIN(N3-$C$7,1)) -> 0.5 | O29: 1 | P29: 1 | Q29: 1 | R29: 1 | S29: 1 | T29: 1 | U29: 1 | V29: 1 | W29: 1 | X29: 1
J30: Return | L30: =L29*$D$29*L23 -> 0 | M30: =M29*$D$29*M23 -> 0 | N30: =N29*$D$29*N23 -> 3611123.242 | O30: =O29*$D$29*O23 -> 6749763.07 | P30: 6308189.785 | Q30: 5895504.472 | R30: 5509817.263 | S30: 5149361.928 | T30: 4812487.783 | U30: 4497652.134 | V30: 4203413.209 | W30: 3928423.56 | X30: 3671423.888
B31: This is the flip chip specific return. This is exactly what I get back from my investment in flip chip. | J31: Cumm return | L31: =L30 -> 0 | M31: =L31+M30 -> 0 | N31: =M31+N30 -> 3611123.242 | O31: 10360886.31 | P31: 16669076.1 | Q31: 22564580.57 | R31: 28074397.83 | S31: 33223759.76 | T31: 38036247.54 | U31: 42533899.68 | V31: 46737312.89 | W31: 50665736.45 | X31: 54337160.33
B32: In this case the "return" does not incude the original investment amount in it like for financial calculations (that makes no sense) | J32: ROI | L32: =(L31-L18)/L18 -> -1 | M32: =(M31-M18)/M18 -> -1 | N32: -0.5617059689 | O32: 0.2283275124 | P32: 0.9342052934 | Q32: 1.567317678 | R32: 2.194205079 | S32: 2.780081154 | T32: 3.327628888 | U32: 3.839355743 | V32: 4.317605139 | W32: 4.764567192 | X32: 5.182288737
J35: ROI | K35: 1.5 years to production, 7% discount rate | L35: -1 | M35: -1 | N35: -0.5617059689 | O35: 0.2283275124 | P35: 0.9342052934 | Q35: 1.567317678 | R35: 2.194205079 | S35: 2.780081154 | T35: 3.327628888 | U35: 3.839355743 | V35: 4.317605139 | W35: 4.764567192 | X35: 5.182288737
J36: ROI | K36: 3 years to production, 7% discount rate | L36: -1 | M36: -1 | N36: -1 | O36: -1 | P36: -0.3843849565 | Q36: 0.1713947974 | R36: 0.7002650838 | S36: 1.194536379 | T36: 1.65647217 | U36: 2.088187862 | V36: 2.491660471 | W36: 2.868737676 | X36: 3.221146279
J37: ROI | K37: 3 years to production, 0% discount rate | L37: -1 | M37: -1 | N37: -1 | O37: -1 | P37: -0.2441727605 | Q37: 0.4792039356 | R37: 1.218805903 | S37: 1.958407871 | T37: 2.698009839 | U37: 3.437611807 | V37: 4.177213775 | W37: 4.916815742 | X37: 5.65641771

Sheet ROI 3
B3: CM Cost | C3: 5000 | F3: WACC | G3: 0.05
B4: Pred Cost | C4: 1000
B5: CM downtime | C5: 5 | D5: days
B6: PHM downtime | C6: 0.5 | D6: days
B8: Fails/yr | C8: 3
B9: PHM catch/yr | C9: 2
B11: Life (years) | C11: 25
B13: Cu | C13: =C11*C8*C3 -> 375000 | F13: Cu | G13: =C8*C3*((1+G3)^C11-1)/(G3*(1+G3)^C11) -> 211409.1685
B14: CPHM | C14: =C11*((C8-C9)*C3+C9*C4) -> 175000 | F14: CPHM | G14: =((C8-C9)*C3+C9*C4)*((1+G3)^C11-1)/(G3*(1+G3)^C11) -> 98657.61196
B16: Recurring IPHM | C16: 20000 | G16: =C16 -> 20000
B17: Annual IPHM | C17: 2000 | G17: =C17*((1+G3)^C11-1)/(G3*(1+G3)^C11) -> 28187.88913
B19: IPHM | C19: =C16+C11*C17 -> 70000 | F19: IPHM | G19: =G16+G17 -> 48187.88913
B21: ROI | C21: =(C13-C14)/C19 -> 2.857142857 | F21: ROI | G21: =(G13-G14)/G19 -> 2.339831824
B24: A(no PHM) | C24: =(24*7*365-C8*C5*24)/(24*7*365) -> 0.9941291585
B25: A(PHM) | C25: =(24*7*365-(C8-C9)*C5*24-C9*C6*24)/(24*7*365) -> 0.9976516634

Sheet CBA 1
B1: fp_rate | C1: 0.01
B2: fn_rate | C2: 0.02
C3: fraction bad | D3: 0.02
B4: 2500 | G4: Test 1 | H4: Test 2 | I4: Test 3 | J4: Test 4 | K4: Test 5 | L4: Test 6 | M4: Test 7 | N4: Test 8 | O4: Test 9 | P4: Test 10
C5: conterfeit | D5: =D3*B4 -> 50 | F5: TN | G5: =(1-C1)*D6 -> 2425.5 | H5: =(1-C1)*G6 -> 24.255
C6: non-conterfeit | D6: =B4-D5 -> 2450 | F6: FP | G6: =C1*D6 -> 24.5 | H6: =C1*G6 -> 0.245 | I6: =$C$1*H6 -> 0.00245 | J6: =$C$1*I6 -> 2.45e-05 | K6: 2.45e-07 | L6: 2.45e-09 | M6: 2.45e-11 | N6: 2.45e-13 | O6: 2.45e-15 | P6: 2.45e-17
F8: TP | G8: =(1-C2)*D5 -> 49 | H8: =(1-$C$2)*G8 -> 48.02 | I8: =(1-$C$2)*H8 -> 47.0596 | J8: =(1-$C$2)*I8 -> 46.118408 | K8: 45.19603984 | L8: 44.29211904 | M8: 43.40627666 | N8: 42.53815113 | O8: 41.68738811 | P8: 40.85364034
F9: FN | G9: =C2*D5 -> 1 | H9: =C2*G8 -> 0.98
F11: Confidence in a positive | G11: =G8/(G8+G6) -> 0.6666666667 | H11: =H8/(H8+H6) -> 0.9949238579 | I11: =I8/(I8+I6) -> 0.9999479411 | J11: 0.9999994688 | K11: 0.9999999946 | L11: 0.9999999999 | M11: 1 | N11: 1 | O11: 1 | P11: 1
G12: part a) answer | I12: part d) answer, greater than 0.9999
F13: Confidence in a negative | G13: =G5/(G5+G9) -> 0.9995878838 | H13: =H5/(H5+H9) -> 0.9611650485
G14: part f) answer
F15: Prob a negative is wrong | G15: =G9/(G5+G9) -> 0.0004121162168 | H15: =H9/(H5+H9) -> 0.03883495146
G16: part b) answer
